{"text_format":"1","workbook":"xlsx","n_sheets":10,"sheets":["Base Maestra","Instructivo","Resumen de Calidad","XX.ACRONIMO-2024","Notas 2025","1.Codificación Espacio Temporal","2.Catálogo CAI IE&D","3.Catálogo COG","4 Equivalencias COG=CFA","5.CAI=CFA IE&D"],"not_rendered":{"charts":0,"images":1,"macros":1,"external_links":0,"defined_names":47,"comments":1,"pivot_tables":0},"unopened":[],"bounds":{"document_bytes":16777216,"sheet_cells":100000,"rows_first":2000,"rows_last":500,"rows_between":2000,"halvings":0,"cell_chars":16384,"cell_head_chars":4096},"cells_cut":0,"cells_raw":0,"read":"whole","date_system":"1900"}

{"sheet":"Base Maestra","index":0,"n_rows":508,"n_cols":16,"rows_kept":508,"cut":false,"hidden":true,"merged":[[2,3,2,7],[2,9,2,13],[13,0,13,2],[13,4,13,7]]}
["Cuenta Pública 2024"]
["Miles de Pesos "]
[null,null,null,"Referencia de Subfunción_Cuenta Pública",null,null,null,null,"Suma","Referencia de Subfunción_Matriz de Gasto",null,null,null,null,"Suma","Fuente de Financiamiento Evaluda"]
["Cve_Ins","Institución","Descripción",1,2,3,4,6,null,1,2,3,4,6,null,"A02"]
[105,"UNAM","Universidad Nacional Autónoma de México",0,0,0,0,0,1502231.15,{"$f":"SUMIFS('XX.ACRONIMO-2024'!$W$2:$W$1048576,'XX.ACRONIMO-2024'!$D$2:$D$1048576,'Base Maestra'!$A5,'XX.ACRONIMO-2024'!$F$2:$F$1048576,'Base Maestra'!J$4,'XX.ACRONIMO-2024'!$E$2:$E$1048576,'Base Maestra'!$P5)","v":0},{"$f":"SUMIFS('XX.ACRONIMO-2024'!$W$2:$W$1048576,'XX.ACRONIMO-2024'!$D$2:$D$1048576,'Base Maestra'!$A5,'XX.ACRONIMO-2024'!$F$2:$F$1048576,'Base Maestra'!K$4,'XX.ACRONIMO-2024'!$E$2:$E$1048576,'Base Maestra'!$P5)","v":0},{"$f":"SUMIFS('XX.ACRONIMO-2024'!$W$2:$W$1048576,'XX.ACRONIMO-2024'!$D$2:$D$1048576,'Base Maestra'!$A5,'XX.ACRONIMO-2024'!$F$2:$F$1048576,'Base Maestra'!L$4,'XX.ACRONIMO-2024'!$E$2:$E$1048576,'Base Maestra'!$P5)","v":0},{"$f":"SUMIFS('XX.ACRONIMO-2024'!$W$2:$W$1048576,'XX.ACRONIMO-2024'!$D$2:$D$1048576,'Base Maestra'!$A5,'XX.ACRONIMO-2024'!$F$2:$F$1048576,'Base Maestra'!M$4,'XX.ACRONIMO-2024'!$E$2:$E$1048576,'Base Maestra'!$P5)","v":0},{"$f":"SUMIFS('XX.ACRONIMO-2024'!$W$2:$W$1048576,'XX.ACRONIMO-2024'!$D$2:$D$1048576,'Base Maestra'!$A5,'XX.ACRONIMO-2024'!$F$2:$F$1048576,'Base Maestra'!N$4,'XX.ACRONIMO-2024'!$E$2:$E$1048576,'Base Maestra'!$P5)","v":0},{"$f":"SUM(J5:N5)","v":0},"A26"]
[106,"IPN","Instituto Politécnico Nacional",0,0,0,0,0,5751.670000000001,{"$f":"SUMIFS('XX.ACRONIMO-2024'!$W$2:$W$1048576,'XX.ACRONIMO-2024'!$D$2:$D$1048576,'Base Maestra'!$A6,'XX.ACRONIMO-2024'!$F$2:$F$1048576,'Base Maestra'!J$4,'XX.ACRONIMO-2024'!$E$2:$E$1048576,'Base Maestra'!$P6)","v":0},{"$f":"SUMIFS('XX.ACRONIMO-2024'!$W$2:$W$1048576,'XX.ACRONIMO-2024'!$D$2:$D$1048576,'Base Maestra'!$A6,'XX.ACRONIMO-2024'!$F$2:$F$1048576,'Base Maestra'!K$4,'XX.ACRONIMO-2024'!$E$2:$E$1048576,'Base Maestra'!$P6)","v":0},{"$f":"SUMIFS('XX.ACRONIMO-2024'!$W$2:$W$1048576,'XX.ACRONIMO-2024'!$D$2:$D$1048576,'Base Maestra'!$A6,'XX.ACRONIMO-2024'!$F$2:$F$1048576,'Base Maestra'!L$4,'XX.ACRONIMO-2024'!$E$2:$E$1048576,'Base Maestra'!$P6)","v":0},{"$f":"SUMIFS('XX.ACRONIMO-2024'!$W$2:$W$1048576,'XX.ACRONIMO-2024'!$D$2:$D$1048576,'Base Maestra'!$A6,'XX.ACRONIMO-2024'!$F$2:$F$1048576,'Base Maestra'!M$4,'XX.ACRONIMO-2024'!$E$2:$E$1048576,'Base Maestra'!$P6)","v":0},{"$f":"SUMIFS('XX.ACRONIMO-2024'!$W$2:$W$1048576,'XX.ACRONIMO-2024'!$D$2:$D$1048576,'Base Maestra'!$A6,'XX.ACRONIMO-2024'!$F$2:$F$1048576,'Base Maestra'!N$4,'XX.ACRONIMO-2024'!$E$2:$E$1048576,'Base Maestra'!$P6)","v":0},{"$f":"SUM(J6:N6)","v":0},"A26"]
[107,"UAM","Universidad Autónoma de Metropolitana",0,0,0,0,0,86476.209999999963,{"$f":"SUMIFS('XX.ACRONIMO-2024'!$W$2:$W$1048576,'XX.ACRONIMO-2024'!$D$2:$D$1048576,'Base Maestra'!$A7,'XX.ACRONIMO-2024'!$F$2:$F$1048576,'Base Maestra'!J$4,'XX.ACRONIMO-2024'!$E$2:$E$1048576,'Base Maestra'!$P7)","v":0},{"$f":"SUMIFS('XX.ACRONIMO-2024'!$W$2:$W$1048576,'XX.ACRONIMO-2024'!$D$2:$D$1048576,'Base Maestra'!$A7,'XX.ACRONIMO-2024'!$F$2:$F$1048576,'Base Maestra'!K$4,'XX.ACRONIMO-2024'!$E$2:$E$1048576,'Base Maestra'!$P7)","v":0},{"$f":"SUMIFS('XX.ACRONIMO-2024'!$W$2:$W$1048576,'XX.ACRONIMO-2024'!$D$2:$D$1048576,'Base Maestra'!$A7,'XX.ACRONIMO-2024'!$F$2:$F$1048576,'Base Maestra'!L$4,'XX.ACRONIMO-2024'!$E$2:$E$1048576,'Base Maestra'!$P7)","v":0},{"$f":"SUMIFS('XX.ACRONIMO-2024'!$W$2:$W$1048576,'XX.ACRONIMO-2024'!$D$2:$D$1048576,'Base Maestra'!$A7,'XX.ACRONIMO-2024'!$F$2:$F$1048576,'Base Maestra'!M$4,'XX.ACRONIMO-2024'!$E$2:$E$1048576,'Base Maestra'!$P7)","v":0},{"$f":"SUMIFS('XX.ACRONIMO-2024'!$W$2:$W$1048576,'XX.ACRONIMO-2024'!$D$2:$D$1048576,'Base Maestra'!$A7,'XX.ACRONIMO-2024'!$F$2:$F$1048576,'Base Maestra'!N$4,'XX.ACRONIMO-2024'!$E$2:$E$1048576,'Base Maestra'!$P7)","v":0},{"$f":"SUM(J7:N7)","v":0},"A26"]
[103,"CONAHCyT","Consejo Nacional de Humanidades Ciencia y Tecnología",0,0,0,0,0,3424230.6200000015,{"$f":"SUMIFS('XX.ACRONIMO-2024'!$W$2:$W$1048576,'XX.ACRONIMO-2024'!$D$2:$D$1048576,'Base Maestra'!$A8,'XX.ACRONIMO-2024'!$F$2:$F$1048576,'Base Maestra'!J$4,'XX.ACRONIMO-2024'!$E$2:$E$1048576,'Base Maestra'!$P8)","v":0},{"$f":"SUMIFS('XX.ACRONIMO-2024'!$W$2:$W$1048576,'XX.ACRONIMO-2024'!$D$2:$D$1048576,'Base Maestra'!$A8,'XX.ACRONIMO-2024'!$F$2:$F$1048576,'Base Maestra'!K$4,'XX.ACRONIMO-2024'!$E$2:$E$1048576,'Base Maestra'!$P8)","v":0},{"$f":"SUMIFS('XX.ACRONIMO-2024'!$W$2:$W$1048576,'XX.ACRONIMO-2024'!$D$2:$D$1048576,'Base Maestra'!$A8,'XX.ACRONIMO-2024'!$F$2:$F$1048576,'Base Maestra'!L$4,'XX.ACRONIMO-2024'!$E$2:$E$1048576,'Base Maestra'!$P8)","v":0},{"$f":"SUMIFS('XX.ACRONIMO-2024'!$W$2:$W$1048576,'XX.ACRONIMO-2024'!$D$2:$D$1048576,'Base Maestra'!$A8,'XX.ACRONIMO-2024'!$F$2:$F$1048576,'Base Maestra'!M$4,'XX.ACRONIMO-2024'!$E$2:$E$1048576,'Base Maestra'!$P8)","v":0},{"$f":"SUMIFS('XX.ACRONIMO-2024'!$W$2:$W$1048576,'XX.ACRONIMO-2024'!$D$2:$D$1048576,'Base Maestra'!$A8,'XX.ACRONIMO-2024'!$F$2:$F$1048576,'Base Maestra'!N$4,'XX.ACRONIMO-2024'!$E$2:$E$1048576,'Base Maestra'!$P8)","v":0},{"$f":"SUM(J8:N8)","v":0},"A27"]
["Ramo 12",null,null,{"$f":"SUM(D5:D8)","v":0},{"$f":"SUM(E5:E8)","v":0},{"$f":"SUM(F5:F8)","v":0},{"$f":"SUM(G5:G8)","v":0},{"$f":"SUM(H5:H8)","v":0},{"$f":"SUM(D9:H9)","v":0},{"$f":"SUM(J5:J8)","v":0},0,0,0,0,0]
[]
[]
[null,null,null,null,null,null,null,null,null,"Penalización por días de retraso en la calificación de Oportunidad"]
[]
["Validador COG",null,null,null,"Validador CFA",null,null,null,null,null,"Días hábiles de retraso","Penalización","Puntaje de oportunidad","Calificación"]
["Capitulo","Concepto","Partida ",null,"Cve_Función","Cve_Subf","Cve_Actividad","Cve_Subactividad",null,null,0,0,1,100]
[1000,1100,1110,null,"HC.1","HC.1.1","HC.1.1.1",null,null,null,1,0.05,0.95,95]
[1000,1100,1120,null,"HC.1","HC.1.1","HC.1.1.2",null,null,null,2,0.1,0.9,90]
[1000,1100,1130,null,"HC.1","HC.1.2","HC.1.2.1",null,null,null,3,0.15,0.85,85]
[1000,1100,1140,null,"HC.1","HC.1.2","HC.1.2.2",null,null,null,4,0.2,0.8,80]
[1000,1200,1210,null,"HC.1","HC.1.3","HC.1.3.1",null,null,null,5,0.25,0.75,75]
[1000,1200,12201,null,"HC.1","HC.1.3","HC.1.3.2",null,null,null,6,0.3,0.7,70]
[1000,1200,12202,null,"HC.1","HC.1.3","HC.1.3.3",null,null,null,7,0.35,0.65,65]
[1000,1200,12301,null,"HC.1","HC.1.4",null,null,null,null,8,0.4,0.6,60]
[1000,1200,1240,null,"HC.2","HC.2.1",null,null,null,null,9,0.45,0.55000000000000004,55]
[1000,1300,13101,null,"HC.2","HC.2.2",null,null,null,null,10,0.5,0.5,50]
[1000,1300,13102,null,"HC.2","HC.2.3",null,null,null,null,11,0.55000000000000004,0.45,45]
[1000,1300,13103,null,"HC.2","HC.2.4",null,null,null,null,12,0.6,0.4,40]
[1000,1300,13104,null,"HC.4","HC.4.1",null,null,null,null,13,0.65,0.35,35]
[1000,1300,13201,null,"HC.4","HC.4.2",null,null,null,null,14,0.7,0.3,30]
[1000,1300,13202,null,"HC.4","HC.4.3",null,null,null,null,15,0.75,0.25,25]
[1000,1300,1330,null,"HC.6","HC.6.1",null,null,null,null,16,0.8,0.2,20]
[1000,1300,13401,null,"HC.6","HC.6.2",null,null,null,null,17,0.85,0.15,15]
[1000,1300,13402,null,"HC.6","HC.6.3",null,null,null,null,18,0.9,0.1,10]
[1000,1300,13403,null,"HC.6","HC.6.4",null,null,null,null,19,0.95,0.05,5]
[1000,1300,13404,null,"HC.6","HC.6.5",null,null,null,null,"20 o más",1,0,0]
[1000,1300,13405,null,"HC.6","HC.6.6"]
[1000,1300,13406,null,"HC.7","HC.7.1"]
[1000,1300,13407,null,"HC.7","HC.7.2"]
[1000,1300,13408,null,"HC.9"]
[1000,1300,13409,null,"HCR.1","HCR.1.1"]
[1000,1300,13410,null,"HCR.1","HCR.1.2"]
[1000,1300,13411,null,"HCR.2"]
[1000,1300,13412,null,"HK.1","HK.1.1","HK.1.1.1","HK.1.1.1.1"]
[1000,1300,13413,null,"HK.1","HK.1.1","HK.1.1.1","HK.1.1.1.2"]
[1000,1300,13414,null,"HK.1","HK.1.1","HK.1.1.2","HK.1.1.2.1"]
[1000,1300,1350,null,"HK.1","HK.1.1","HK.1.1.2","HK.1.1.2.2"]
[1000,1300,13601,null,"HK.1","HK.1.1","HK.1.1.2","HK.1.1.2.3"]
[1000,1300,13602,null,"HK.1","HK.1.1","HK.1.1.2","HK.1.1.2.4"]
[1000,1300,13603,null,"HK.1","HK.1.1","HK.1.1.3","HK.1.1.3.1"]
[1000,1300,13604,null,"HK.1","HK.1.1","HK.1.1.3","HK.1.1.3.2"]
[1000,1300,13605,null,"HK.2","HK.2.1"]
[1000,1300,1370,null,"HK.2","HK.2.2"]
[1000,1300,1380,null,"HKR.4"]
[1000,1400,14101,null,"HKR.5"]
[1000,1400,14102]
[1000,1400,14103]
[1000,1400,14104]
[1000,1400,14105,null,null,"Validador CAI CONAHCYT"]
[1000,1400,14201,null,null,"Cve_Subfunción","Cve_AI","Cve_H","Actividad Institucional","Cve_PP","Programa Presupuestario"]
[1000,1400,14202,null,null,4,1,null,"Función pública y buen gobierno","O001","Actividades de apoyo a la función pública y buen gobierno"]
[1000,1400,14301,null,null,1,2,null,"Servicios de apoyo administrativo","M001","Actividades de apoyo administrativo"]
[1000,1400,14302,null,null,1,3,null,"Generación de conocimiento científico para el bienestar de la población y difusión de sus resultados","E003","Investigación científica, desarrollo e innovación"]
[1000,1400,14401,null,null,1,3,null,"Generación de conocimiento científico para el bienestar de la población y difusión de sus resultados","F003","Programas nacionales estratégicos de ciencia, tecnología y vinculación con el sector social, público y privado"]
[1000,1400,14402,null,null,1,3,null,"Generación de conocimiento científico para el bienestar de la población y difusión de sus resultados","P001","Diseño y evaluación de políticas en ciencia, tecnología e innovación",0]
[1000,1400,14403,null,null,1,6,null,"Apoyo a la formación de capital humano","S190","Becas de posgrado y apoyos a la calidad",0]
[1000,1400,14404,null,null,1,7,null,"Apoyo al ingreso y fomento al desarrollo de los investigadores de mérito","S191","Sistema Nacional de Investigadores",0]
[1000,1400,14405,null,null,2,2,null,"Servicios de apoyo administrativo","M001","Actividades de apoyo administrativo",0]
[1000,1400,14406,null,null,2,4,null,"Generación de desarrollo e innovación tecnológica para elevar la competitividad del país y difusión de sus resultados","E003","Investigación científica, desarrollo e innovación",0]
[1000,1500,15101,null,null,3,2,null,"Servicios de apoyo administrativo","M001","Actividades de apoyo administrativo",0]
[1000,1500,15102,null,null,3,5,null,"Formulación, articulación y conducción de la política en ciencia, tecnología e innovación","P001","Diseño y evaluación de políticas en ciencia, tecnología e innovación",0]
[1000,1500,15103,null,null,3,6,null,"Apoyo a la formación de capital humano","E003","Investigación científica, desarrollo e innovación",0]
[1000,1500,15201,null,null,null,null,null,null,null,null,0]
[1000,1500,15202,null,null,"Validador CAI UNAM",null,null,null,null,null,0]
[1000,1500,1530,null,null,"Cve_Subfunción","Cve_AI","Cve_H","Actividad Institucional","Cve_PP","Programa Presupuestario"]
[1000,1500,15401,null,null,2,8,null,"Fomento y promoción de la cultura","E011","Desarrollo Cultural",0]
[1000,1500,15402,null,null,2,8,null,"Fomento y promoción de la cultura","K027","Mantenimiento de Infraestructura",0]
[1000,1500,15403,null,null,2,4,null,"Educación media superior de calidad","E007","Servicios de Educación Media Superior",0]
[1000,1500,1550,null,null,2,4,null,"Educación media superior de calidad","K009","Proyectos de infraestructura social del sector educativo",0]
[1000,1500,15901,null,null,2,4,null,"Educación media superior de calidad","K027","Mantenimiento de infraestructura",0]
[1000,1500,15902,null,null,3,5,null,"Educación superior de calidad","E010","Servicios de Educación Superior y Posgrado",0]
[1000,1600,16101,null,null,3,5,null,"Educación superior de calidad","K009","Proyectos de infraestructura social del sector educativo",0]
[1000,1600,16102,null,null,3,5,null,"Educación superior de calidad","K027","Mantenimiento de infraestructura",0]
[1000,1600,16103,null,null,3,5,null,"Educación superior de calidad","S243","Programa de Becas Elisa Acuña",0]
[1000,1600,16104,null,null,4,6,null,"Educación de postgrado de calidad","E010","Servicios de Educación Superior y Posgrado",0]
[1000,1600,16105,null,null,4,6,null,"Educación de postgrado de calidad","K027","Mantenimiento de infraestructura",0]
[1000,1600,16106,null,null,1,14,null,"Investigación en diversas instituciones de educación superior","E021","Investigación Científica y Desarrollo Tecnológico",0]
[1000,1600,16107,null,null,1,14,null,"Investigación en diversas instituciones de educación superior","K009","Proyectos de infraestructura social del sector educativo",0]
[1000,1600,16108,null,null,1,14,null,"Investigación en diversas instituciones de educación superior","K027","Mantenimiento de Infraestructura",0]
[1000,1600,16109,null,null,null,null,null,null,null,null,0]
[1000,1700,17101,null,null,"Validador CAI UAM",null,null,null,null,null,0]
[1000,1700,17102,null,null,"Cve_Subfunción","Cve_AI","Cve_H","Actividad Institucional","Cve_PP","Programa Presupuestario",0]
[1000,1700,1720,null,null,4,1,null,"Función pública y buen gobierno","O001","Actividades de apoyo a la función pública y buen gobierno",0]
[2000,2100,2110,null,null,2,8,null,"Fomento y promoción de la cultura","E011","Desarrollo Cultural",0]
[2000,2100,2120,null,null,3,5,null,"Educación superior de calidad","E010","Servicios de Educación Superior y Posgrado",0]
[2000,2100,2130,null,null,3,5,null,"Educación superior de calidad","K009","Proyectos de infraestructura social del sector educativo",0]
[2000,2100,2140,null,null,3,5,null,"Educación superior de calidad","S243","Programa de Becas Elisa Acuña",0]
[2000,2100,21501,null,null,4,6,null,"Educación de posgrado de calidad","E010","Servicios de Educación Superior y Posgrado",0]
[2000,2100,21502,null,null,1,14,null,"Investigación en diversas instituciones de educación superior","E021","Investigación Científica y Desarrollo Tecnológico",0]
[2000,2100,2160,null,null,null,null,null,null,null,null,0]
[2000,2100,2170,null,null,"Validador CAI IPN",null,null,null,null,null,0]
[2000,2100,2180,null,null,"Cve_Subfunción","Cve_AI","Cve_H","Actividad Institucional","Cve_PP","Programa Presupuestario",0]
[2000,2200,22101,null,null,2,4,null,"Educación media superior de calidad","E007","Servicios de Educación Media Superior",0]
[2000,2200,22102,null,null,2,4,null,"Educación media superior de calidad","S243","Programa de Becas Elisa Acuña",0]
[2000,2200,22103,null,null,3,5,null,"Educación superior de calidad","E010","Servicios de Educación Superior y Posgrado",0]
[2000,2200,22104,null,null,3,5,null,"Educación superior de calidad","S243","Programa de Becas Elisa Acuña",0]
[2000,2200,22105,null,null,4,6,null,"Educación de postgrado de calidad","E010","Servicios de Educación Superior y Posgrado",0]
[2000,2200,22106,null,null,4,6,null,"Educación de postgrado de calidad","S243","Programa de Becas Elisa Acuña",0]
[2000,2200,2220,null,null,6,2,null,"Servicios de apoyo administrativo","M001","Actividades de apoyo administrativo",0]
[2000,2200,2230,null,null,1,14,null,"Investigación en diversas instituciones de educación superior","E021","Investigación Científica y Desarrollo Tecnológico",0]
[2000,2300,2310,null,null,null,null,null,null,null,null,0]
[2000,2300,2320,null,null,null,null,null,null,null,null,0]
[2000,2300,2330,null,null,null,null,null,null,null,null,0]
[2000,2300,2340,null,null,null,null,null,null,null,null,0]
[2000,2300,2350,null,null,null,null,null,null,null,null,0]
[2000,2300,2360,null,null,null,null,null,null,null,null,0]
[2000,2300,2370,null,null,null,null,null,null,null,null,0]
[2000,2300,2380,null,null,null,null,null,null,null,null,0]
[2000,2300,23901,null,null,null,null,null,null,null,null,0]
[2000,2300,23902,null,null,null,null,null,null,null,null,0]
[2000,2400,2410,null,null,null,null,null,null,null,null,0]
[2000,2400,2420,null,null,null,null,null,null,null,null,0]
[2000,2400,2430,null,null,null,null,null,null,null,null,0]
[2000,2400,2440,null,null,null,null,null,null,null,null,0]
[2000,2400,2450,null,null,null,null,null,null,null,null,0]
[2000,2400,2460,null,null,null,null,null,null,null,null,0]
[2000,2400,2470,null,null,null,null,null,null,null,null,0]
[2000,2400,2480,null,null,null,null,null,null,null,null,0]
[2000,2400,2490,null,null,null,null,null,null,null,null,0]
[2000,2500,2510,null,null,null,null,null,null,null,null,0]
[2000,2500,2520,null,null,null,null,null,null,null,null,0]
[2000,2500,2530,null,null,null,null,null,null,null,null,0]
[2000,2500,2540,null,null,null,null,null,null,null,null,0]
[2000,2500,2550,null,null,null,null,null,null,null,null,0]
[2000,2500,2560,null,null,null,null,null,null,null,null,0]
[2000,2500,2590,null,null,null,null,null,null,null,null,0]
[2000,2600,26101,null,null,null,null,null,null,null,null,0]
[2000,2600,26102,null,null,null,null,null,null,null,null,0]
[2000,2600,26103,null,null,null,null,null,null,null,null,0]
[2000,2600,26104,null,null,null,null,null,null,null,null,0]
[2000,2600,26105,null,null,null,null,null,null,null,null,0]
[2000,2600,26106,null,null,null,null,null,null,null,null,0]
[2000,2600,26107,null,null,null,null,null,null,null,null,0]
[2000,2600,26108,null,null,null,null,null,null,null,null,0]
[2000,2600,2620,null,null,null,null,null,null,null,null,0]
[2000,2700,2710,null,null,null,null,null,null,null,null,0]
[2000,2700,2720,null,null,null,null,null,null,null,null,0]
[2000,2700,2730,null,null,null,null,null,null,null,null,0]
[2000,2700,2740,null,null,null,null,null,null,null,null,0]
[2000,2700,2750,null,null,null,null,null,null,null,null,0]
[2000,2800,2810,null,null,null,null,null,null,null,null,0]
[2000,2800,2820,null,null,null,null,null,null,null,null,0]
[2000,2800,2830,null,null,null,null,null,null,null,null,0]
[2000,2900,2910,null,null,null,null,null,null,null,null,0]
[2000,2900,2920,null,null,null,null,null,null,null,null,0]
[2000,2900,2930,null,null,null,null,null,null,null,null,0]
[2000,2900,2940,null,null,null,null,null,null,null,null,0]
[2000,2900,2950,null,null,null,null,null,null,null,null,0]
[2000,2900,2960,null,null,null,null,null,null,null,null,0]
[2000,2900,2970,null,null,null,null,null,null,null,null,0]
[2000,2900,2980,null,null,null,null,null,null,null,null,0]
[2000,2900,2990,null,null,null,null,null,null,null,null,0]
[3000,3100,3110,null,null,null,null,null,null,null,null,0]
[3000,3100,3120,null,null,null,null,null,null,null,null,0]
[3000,3100,3130,null,null,null,null,null,null,null,null,0]
[3000,3100,3140,null,null,null,null,null,null,null,null,0]
[3000,3100,3150,null,null,null,null,null,null,null,null,0]
[3000,3100,31601,null,null,null,null,null,null,null,null,0]
[3000,3100,31602,null,null,null,null,null,null,null,null,0]
[3000,3100,31603,null,null,null,null,null,null,null,null,0]
[3000,3100,3170,null,null,null,null,null,null,null,null,0]
[3000,3100,31801,null,null,null,null,null,null,null,null,0]
[3000,3100,31802,null,null,null,null,null,null,null,null,0]
[3000,3100,31901,null,null,null,null,null,null,null,null,0]
[3000,3100,31902,null,null,null,null,null,null,null,null,0]
[3000,3100,31903,null,null,null,null,null,null,null,null,0]
[3000,3100,31904,null,null,null,null,null,null,null,null,0]
[3000,3200,3210,null,null,null,null,null,null,null,null,0]
[3000,3200,3220,null,null,null,null,null,null,null,null,0]
[3000,3200,32301,null,null,null,null,null,null,null,null,0]
[3000,3200,32302,null,null,null,null,null,null,null,null,0]
[3000,3200,32303,null,null,null,null,null,null,null,null,0]
[3000,3200,3240,null,null,null,null,null,null,null,null,0]
[3000,3200,32501,null,null,null,null,null,null,null,null,0]
[3000,3200,32502,null,null,null,null,null,null,null,null,0]
[3000,3200,32503,null,null,null,null,null,null,null,null,0]
[3000,3200,32504,null,null,null,null,null,null,null,null,0]
[3000,3200,32505,null,null,null,null,null,null,null,null,0]
[3000,3200,3260,null,null,null,null,null,null,null,null,0]
[3000,3200,3270,null,null,null,null,null,null,null,null,0]
[3000,3200,3280,null,null,null,null,null,null,null,null,0]
[3000,3200,32901,null,null,null,null,null,null,null,null,0]
[3000,3200,32902,null,null,null,null,null,null,null,null,0]
[3000,3200,32903,null,null,null,null,null,null,null,null,0]
[3000,3300,33101,null,null,null,null,null,null,null,null,0]
[3000,3300,33102,null,null,null,null,null,null,null,null,0]
[3000,3300,33103,null,null,null,null,null,null,null,null,0]
[3000,3300,33104,null,null,null,null,null,null,null,null,0]
[3000,3300,33105,null,null,null,null,null,null,null,null,0]
[3000,3300,3320,null,null,null,null,null,null,null,null,0]
[3000,3300,33301,null,null,null,null,null,null,null,null,0]
[3000,3300,33302,null,null,null,null,null,null,null,null,0]
[3000,3300,33303,null,null,null,null,null,null,null,null,0]
[3000,3300,33304,null,null,null,null,null,null,null,null,0]
[3000,3300,3340,null,null,null,null,null,null,null,null,0]
[3000,3300,3350,null,null,null,null,null,null,null,null,0]
[3000,3300,33601,null,null,null,null,null,null,null,null,0]
[3000,3300,33602,null,null,null,null,null,null,null,null,0]
[3000,3300,33603,null,null,null,null,null,null,null,null,0]
[3000,3300,33604,null,null,null,null,null,null,null,null,0]
[3000,3300,33605,null,null,null,null,null,null,null,null,0]
[3000,3300,33606,null,null,null,null,null,null,null,null,0]
[3000,3300,33701,null,null,null,null,null,null,null,null,0]
[3000,3300,33702,null,null,null,null,null,null,null,null,0]
[3000,3300,3380,null,null,null,null,null,null,null,null,0]
[3000,3300,33901,null,null,null,null,null,null,null,null,0]
[3000,3300,33902,null,null,null,null,null,null,null,null,0]
[3000,3300,33903,null,null,null,null,null,null,null,null,0]
[3000,3300,33904,null,null,null,null,null,null,null,null,0]
[3000,3300,33905,null,null,null,null,null,null,null,null,0]
[3000,3300,33906,null,null,null,null,null,null,null,null,0]
[3000,3400,3410,null,null,null,null,null,null,null,null,0]
[3000,3400,3420,null,null,null,null,null,null,null,null,0]
[3000,3400,3430,null,null,null,null,null,null,null,null,0]
[3000,3400,3440,null,null,null,null,null,null,null,null,0]
[3000,3400,3450,null,null,null,null,null,null,null,null,0]
[3000,3400,3460,null,null,null,null,null,null,null,null,0]
[3000,3400,3470,null,null,null,null,null,null,null,null,0]
[3000,3400,3480,null,null,null,null,null,null,null,null,0]
[3000,3400,3490,null,null,null,null,null,null,null,null,0]
[3000,3500,35101,null,null,null,null,null,null,null,null,0]
[3000,3500,35102,null,null,null,null,null,null,null,null,0]
[3000,3500,3520,null,null,null,null,null,null,null,null,0]
[3000,3500,3530,null,null,null,null,null,null,null,null,0]
[3000,3500,3540,null,null,null,null,null,null,null,null,0]
[3000,3500,3550,null,null,null,null,null,null,null,null,0]
[3000,3500,3560,null,null,null,null,null,null,null,null,0]
[3000,3500,35701,null,null,null,null,null,null,null,null,0]
[3000,3500,35702,null,null,null,null,null,null,null,null,0]
[3000,3500,3580,null,null,null,null,null,null,null,null,0]
[3000,3500,3590,null,null,null,null,null,null,null,null,0]
[3000,3600,3610,null,null,null,null,null,null,null,null,0]
[3000,3600,3620,null,null,null,null,null,null,null,null,0]
[3000,3600,3630,null,null,null,null,null,null,null,null,0]
[3000,3600,3640,null,null,null,null,null,null,null,null,0]
[3000,3600,3650,null,null,null,null,null,null,null,null,0]
[3000,3600,3660,null,null,null,null,null,null,null,null,0]
[3000,3600,3690,null,null,null,null,null,null,null,null,0]
[3000,3700,37101,null,null,null,null,null,null,null,null,0]
[3000,3700,37102,null,null,null,null,null,null,null,null,0]
[3000,3700,37103,null,null,null,null,null,null,null,null,0]
[3000,3700,37104,null,null,null,null,null,null,null,null,0]
[3000,3700,37105,null,null,null,null,null,null,null,null,0]
[3000,3700,37106,null,null,null,null,null,null,null,null,0]
[3000,3700,37201,null,null,null,null,null,null,null,null,0]
[3000,3700,37202,null,null,null,null,null,null,null,null,0]
[3000,3700,37203,null,null,null,null,null,null,null,null,0]
[3000,3700,37204,null,null,null,null,null,null,null,null,0]
[3000,3700,37205,null,null,null,null,null,null,null,null,0]
[3000,3700,37206,null,null,null,null,null,null,null,null,0]
[3000,3700,37207,null,null,null,null,null,null,null,null,0]
[3000,3700,37301,null,null,null,null,null,null,null,null,0]
[3000,3700,37302,null,null,null,null,null,null,null,null,0]
[3000,3700,37303,null,null,null,null,null,null,null,null,0]
[3000,3700,37304,null,null,null,null,null,null,null,null,0]
[3000,3700,3740,null,null,null,null,null,null,null,null,0]
[3000,3700,37501,null,null,null,null,null,null,null,null,0]
[3000,3700,37502,null,null,null,null,null,null,null,null,0]
[3000,3700,37503,null,null,null,null,null,null,null,null,0]
[3000,3700,37504,null,null,null,null,null,null,null,null,0]
[3000,3700,37601,null,null,null,null,null,null,null,null,0]
[3000,3700,37602,null,null,null,null,null,null,null,null,0]
[3000,3700,3770,null,null,null,null,null,null,null,null,0]
[3000,3700,37801,null,null,null,null,null,null,null,null,0]
[3000,3700,37802,null,null,null,null,null,null,null,null,0]
[3000,3700,3790,null,null,null,null,null,null,null,null,0]
[3000,3800,38101,null,null,null,null,null,null,null,null,0]
[3000,3800,38102,null,null,null,null,null,null,null,null,0]
[3000,3800,38103,null,null,null,null,null,null,null,null,0]
[3000,3800,3820,null,null,null,null,null,null,null,null,0]
[3000,3800,3830,null,null,null,null,null,null,null,null,0]
[3000,3800,3840,null,null,null,null,null,null,null,null,0]
[3000,3800,3850,null,null,null,null,null,null,null,null,0]
[3000,3900,3910,null,null,null,null,null,null,null,null,0]
[3000,3900,39201,null,null,null,null,null,null,null,null,0]
[3000,3900,39202,null,null,null,null,null,null,null,null,0]
[3000,3900,3930,null,null,null,null,null,null,null,null,0]
[3000,3900,39401,null,null,null,null,null,null,null,null,0]
[3000,3900,39402,null,null,null,null,null,null,null,null,0]
[3000,3900,39403,null,null,null,null,null,null,null,null,0]
[3000,3900,3950,null,null,null,null,null,null,null,null,0]
[3000,3900,39601,null,null,null,null,null,null,null,null,0]
[3000,3900,39602,null,null,null,null,null,null,null,null,0]
[3000,3900,3970,null,null,null,null,null,null,null,null,0]
[3000,3900,3980,null,null,null,null,null,null,null,null,0]
[3000,3900,39901,null,null,null,null,null,null,null,null,0]
[3000,3900,39902,null,null,null,null,null,null,null,null,0]
[3000,3900,39904,null,null,null,null,null,null,null,null,0]
[3000,3900,39905,null,null,null,null,null,null,null,null,0]
[3000,3900,39906,null,null,null,null,null,null,null,null,0]
[3000,3900,39907,null,null,null,null,null,null,null,null,0]
[3000,3900,39908,null,null,null,null,null,null,null,null,0]
[3000,3900,39909,null,null,null,null,null,null,null,null,0]
[3000,3900,39910,null,null,null,null,null,null,null,null,0]
[4000,4100,4110,null,null,null,null,null,null,null,null,0]
[4000,4100,4120,null,null,null,null,null,null,null,null,0]
[4000,4100,4130,null,null,null,null,null,null,null,null,0]
[4000,4100,4140,null,null,null,null,null,null,null,null,0]
[4000,4100,4150,null,null,null,null,null,null,null,null,0]
[4000,4100,4160,null,null,null,null,null,null,null,null,0]
[4000,4100,4170,null,null,null,null,null,null,null,null,0]
[4000,4100,4180,null,null,null,null,null,null,null,null,0]
[4000,4100,4190,null,null,null,null,null,null,null,null,0]
[4000,4200,4210,null,null,null,null,null,null,null,null,0]
[4000,4200,4220,null,null,null,null,null,null,null,null,0]
[4000,4200,4230,null,null,null,null,null,null,null,null,0]
[4000,4200,4240,null,null,null,null,null,null,null,null,0]
[4000,4200,4250,null,null,null,null,null,null,null,null,0]
[4000,4300,4310,null,null,null,null,null,null,null,null,0]
[4000,4300,4320,null,null,null,null,null,null,null,null,0]
[4000,4300,4330,null,null,null,null,null,null,null,null,0]
[4000,4300,4340,null,null,null,null,null,null,null,null,0]
[4000,4300,4350,null,null,null,null,null,null,null,null,0]
[4000,4300,4360,null,null,null,null,null,null,null,null,0]
[4000,4300,4370,null,null,null,null,null,null,null,null,0]
[4000,4300,4380,null,null,null,null,null,null,null,null,0]
[4000,4300,43901,null,null,null,null,null,null,null,null,0]
[4000,4300,43902,null,null,null,null,null,null,null,null,0]
[4000,4400,44101,null,null,null,null,null,null,null,null,0]
[4000,4400,44102,null,null,null,null,null,null,null,null,0]
[4000,4400,44103,null,null,null,null,null,null,null,null,0]
[4000,4400,44104,null,null,null,null,null,null,null,null,0]
[4000,4400,44105,null,null,null,null,null,null,null,null,0]
[4000,4400,44106,null,null,null,null,null,null,null,null,0]
[4000,4400,4420,null,null,null,null,null,null,null,null,0]
[4000,4400,4430,null,null,null,null,null,null,null,null,0]
[4000,4400,44401,null,null,null,null,null,null,null,null,0]
[4000,4400,44402,null,null,null,null,null,null,null,null,0]
[4000,4400,4450,null,null,null,null,null,null,null,null,0]
[4000,4400,4460,null,null,null,null,null,null,null,null,0]
[4000,4400,4470,null,null,null,null,null,null,null,null,0]
[4000,4400,4480,null,null,null,null,null,null,null,null,0]
[4000,4500,4510,null,null,null,null,null,null,null,null,0]
[4000,4500,45201,null,null,null,null,null,null,null,null,0]
[4000,4500,45202,null,null,null,null,null,null,null,null,0]
[4000,4500,45203,null,null,null,null,null,null,null,null,0]
[4000,4500,45901,null,null,null,null,null,null,null,null,0]
[4000,4500,45902,null,null,null,null,null,null,null,null,0]
[4000,4600,46101,null,null,null,null,null,null,null,null,0]
[4000,4600,46102,null,null,null,null,null,null,null,null,0]
[4000,4600,4620,null,null,null,null,null,null,null,null,0]
[4000,4600,4630,null,null,null,null,null,null,null,null,0]
[4000,4600,4640,null,null,null,null,null,null,null,null,0]
[4000,4600,4650,null,null,null,null,null,null,null,null,0]
[4000,4600,4660,null,null,null,null,null,null,null,null,0]
[4000,4600,4690,null,null,null,null,null,null,null,null,0]
[4000,4700,47101,null,null,null,null,null,null,null,null,0]
[4000,4700,47102,null,null,null,null,null,null,null,null,0]
[4000,4800,4810,null,null,null,null,null,null,null,null,0]
[4000,4800,4820,null,null,null,null,null,null,null,null,0]
[4000,4800,4830,null,null,null,null,null,null,null,null,0]
[4000,4800,4840,null,null,null,null,null,null,null,null,0]
[4000,4800,4850,null,null,null,null,null,null,null,null,0]
[4000,4900,4910,null,null,null,null,null,null,null,null,0]
[4000,4900,49201,null,null,null,null,null,null,null,null,0]
[4000,4900,49202,null,null,null,null,null,null,null,null,0]
[4000,4900,4930,null,null,null,null,null,null,null,null,0]
[7000,7100,7110,null,null,null,null,null,null,null,null,0]
[7000,7100,7120,null,null,null,null,null,null,null,null,0]
[7000,7200,7210,null,null,null,null,null,null,null,null,0]
[7000,7200,7220,null,null,null,null,null,null,null,null,0]
[7000,7200,7230,null,null,null,null,null,null,null,null,0]
[7000,7200,7240,null,null,null,null,null,null,null,null,0]
[7000,7200,7250,null,null,null,null,null,null,null,null,0]
[7000,7200,7260,null,null,null,null,null,null,null,null,0]
[7000,7200,7270,null,null,null,null,null,null,null,null,0]
[7000,7200,7280,null,null,null,null,null,null,null,null,0]
[7000,7200,7290,null,null,null,null,null,null,null,null,0]
[7000,7300,7310,null,null,null,null,null,null,null,null,0]
[7000,7300,7320,null,null,null,null,null,null,null,null,0]
[7000,7300,7330,null,null,null,null,null,null,null,null,0]
[7000,7300,7340,null,null,null,null,null,null,null,null,0]
[7000,7300,7350,null,null,null,null,null,null,null,null,0]
[7000,7300,73901,null,null,null,null,null,null,null,null,0]
[7000,7300,73902,null,null,null,null,null,null,null,null,0]
[7000,7300,73903,null,null,null,null,null,null,null,null,0]
[7000,7400,7410,null,null,null,null,null,null,null,null,0]
[7000,7400,7420,null,null,null,null,null,null,null,null,0]
[7000,7400,7430,null,null,null,null,null,null,null,null,0]
[7000,7400,7440,null,null,null,null,null,null,null,null,0]
[7000,7400,74501,null,null,null,null,null,null,null,null,0]
[7000,7400,74502,null,null,null,null,null,null,null,null,0]
[7000,7400,74503,null,null,null,null,null,null,null,null,0]
[7000,7400,74504,null,null,null,null,null,null,null,null,0]
[7000,7400,74505,null,null,null,null,null,null,null,null,0]
[7000,7400,74506,null,null,null,null,null,null,null,null,0]
[7000,7400,7460,null,null,null,null,null,null,null,null,0]
[7000,7400,7470,null,null,null,null,null,null,null,null,0]
[7000,7400,7480,null,null,null,null,null,null,null,null,0]
[7000,7400,7490,null,null,null,null,null,null,null,null,0]
[7000,7500,7510,null,null,null,null,null,null,null,null,0]
[7000,7500,7520,null,null,null,null,null,null,null,null,0]
[7000,7500,7530,null,null,null,null,null,null,null,null,0]
[7000,7500,7540,null,null,null,null,null,null,null,null,0]
[7000,7500,7550,null,null,null,null,null,null,null,null,0]
[7000,7500,75601,null,null,null,null,null,null,null,null,0]
[7000,7500,75602]
[7000,7500,7570]
[7000,7500,7580]
[7000,7500,7590]
[7000,7600,7610]
[7000,7600,7620]
[7000,7900,7910]
[7000,7900,7920]
[7000,7900,79901]
[7000,7900,79902]
[5000,5100,5110]
[5000,5100,5120]
[5000,5100,5130]
[5000,5100,5140]
[5000,5100,5150]
[5000,5100,51901]
[5000,5100,51902]
[5000,5200,5210]
[5000,5200,5220]
[5000,5200,5230]
[5000,5200,5290]
[5000,5300,5310]
[5000,5300,5320]
[5000,5400,54101]
[5000,5400,54102]
[5000,5400,54103]
[5000,5400,54104]
[5000,5400,54105]
[5000,5400,5420]
[5000,5400,54301]
[5000,5400,54302]
[5000,5400,54303]
[5000,5400,5440]
[5000,5400,54501]
[5000,5400,54502]
[5000,5400,54503]
[5000,5400,5490]
[5000,5500,55101]
[5000,5500,55102]
[5000,5600,5610]
[5000,5600,5620]
[5000,5600,5630]
[5000,5600,5640]
[5000,5600,5650]
[5000,5600,5660]
[5000,5600,5670]
[5000,5600,56901]
[5000,5600,56902]
[5000,5700,5710]
[5000,5700,5720]
[5000,5700,5730]
[5000,5700,5740]
[5000,5700,5750]
[5000,5700,5760]
[5000,5700,5770]
[5000,5700,5780]
[5000,5700,5790]
[5000,5800,5810]
[5000,5800,5820]
[5000,5800,5830]
[5000,5800,58901]
[5000,5800,58902]
[5000,5800,58903]
[5000,5800,58904]
[5000,5900,5910]
[5000,5900,5920]
[5000,5900,5930]
[5000,5900,5940]
[5000,5900,5950]
[5000,5900,5960]
[5000,5900,5970]
[5000,5900,5980]
[5000,5900,5990]
[6000,6100,6110]
[6000,6100,6120]
[6000,6100,6130]
[6000,6100,6140]
[6000,6100,6150]
[6000,6100,6160]
[6000,6100,6170]
[6000,6100,6190]
[6000,6200,62101]
[6000,6200,62102]
[6000,6200,62201]
[6000,6200,62202]
[6000,6200,62301]
[6000,6200,62302]
[6000,6200,62401]
[6000,6200,62402]
[6000,6200,62403]
[6000,6200,62501]
[6000,6200,62502]
[6000,6200,62601]
[6000,6200,62602]
[6000,6200,6270]
[6000,6200,62901]
[6000,6200,62902]
[6000,6200,62903]
[6000,6200,62904]
[6000,6200,62905]
[6000,6300,6310]
[6000,6300,6320]
[9000,9900,9910]

{"sheet":"Instructivo","index":1,"n_rows":112,"n_cols":10,"rows_kept":112,"cut":false,"hidden":false,"merged":[[37,1,37,14],[54,1,54,14],[56,2,56,14],[16,2,16,14],[6,1,6,14],[10,1,10,14],[13,2,13,14],[14,2,14,14],[15,2,15,14],[35,1,35,14],[17,2,17,14],[19,1,19,14],[21,1,21,14],[22,1,22,14],[23,1,23,14],[25,1,25,14],[27,1,27,14],[29,1,29,14],[31,1,31,14],[33,2,33,14],[32,2,32,14],[59,9,59,12],[60,9,60,12],[82,2,82,14],[111,1,111,14],[84,2,84,14],[87,3,87,5],[98,3,98,14],[99,3,99,14],[101,3,101,14],[104,3,104,5],[109,3,109,5],[100,3,100,14],[61,9,61,12]]}
[]
[null,null,null,null,null,null,"Subsecretaria de Políticas de Salud y Bienestar Poblacional"]
[null,null,null,null,null,null,"Dirección General de Información en Salud"]
[null,null,null,null,null,null,"Subsistema de Cuentas en Salud a Nivel Federal y Estatal (SICUENTAS)"]
[null,null,null,null,null,null,"INSTRUCTIVO DE LLENADO"]
[]
[null,"Este formato tiene como objetivo recopilar información detallada sobre el gasto en salud realizado durante el ejercicio 2024 por los diferentes tipos de establecimientos (hospitales, centros de salud, etc.) y unidades administrativas centrales (direcciones de planeación, finanzas, recursos humanos, etc.). La información se registrará utilizando los clasificadores de la administración pública: el Clasificador por Actividad Institucional (CAI) y el Clasificador por Objeto del Gasto (COG). Adicionalmente, el gasto se codificará según el clasificador de la Organización Mundial de la Salud (OMS) de Funciones de Atención (HC/CFA)."]
[]
[null,"Estructura del Formato:"]
[]
[null,"1. La pestaña “Resumen de Calidad” presenta los resultados de los atributos de calidad requeridos en la información: Cobertura Oportuna, Validez, Integridad y Consistencia.\nDado que el reporte del gasto público en salud debe realizarse a nivel de unidad (hospitales generales, hospitales especializados, centros de salud, establecimientos de apoyo, etc.), los indicadores de calidad permiten evaluar esta solicitud de información consolidada, conforme a los clasificadores requeridos.\nUna vez completado el llenado de la matriz, el cuadro de “Semáforo de calidad” mostrará el desempeño del usuario en la clasificación y codificación de datos."]
[]
[null,"Instrucciones generales para el llenado y evaluación:"]
[null,null,"a. Antes de proceder a la evaluación de la calidad, es indispensable llenar completamente la matriz, requisitando todas las columnas correspondientes para cada unidad, utilizando los catálogos oficiales y conforme a las especificaciones descritas a continuación."]
[null,null,"b. Una vez concluido el llenado de la matriz, dirigirse a la pestaña \"Resumen de Calidad\" y dar clic el botón \"Evaluación\". Es necesario verificar que todos los validadores de calidad cumplan con los criterios establecidos, a saber:"]
[null,null,"\u009f Cobertura Oportuna: debe alcanzar una calificación mínima de 50 puntos (la DGIS complementará esta calificación con base en la fecha de recepción).","Cobertura Oportuna: debe alcanzar una calificación mínima de 50 puntos (la DGIS complementará esta calificación con base en la fecha de recepción)."]
[null,null,"\u009f Validez e Integridad: deben obtener una calificación de 100 puntos cada una."]
[null,null,"\u009f Consistencia: se registrará inicialmente en cero; esta evaluación será incorporada por la DGIS al inicio del proceso de revisión."]
[null,"Especificaciones:"]
[null,"a) La codificación Espacio-Temporal debe completarse para toda la información incluida en la matriz.\nb) La Información Presupuestal se codifica en la pestaña \"Notas\". En esta misma sección, en caso de no reportar o codificar alguna fuente de financiamiento, explique la razón. Asimismo, indique cualquier detalle relevante que deba considerarse para el análisis y la adecuada interpretación de la información. Si no se dispone del valor Autorizado, Modificado o Autorizado del siguiente año de alguna fuente, registre ceros. En caso de no contar con observaciones o comentarios específicos, indicar expresamente: \"Sin comentarios adicionales.\"\nc) Para que la información se reciba y se registre como \"entregada\", los valores del Semáforo de Calidad deberán cumplir con las características descritas en el punto b. del presente instructivo."]
[]
[null,"2. La pestaña “XX.CVEPRES-2024” es la matriz de gasto donde cada Unidad Responsable debe integrar la información del Ejercicio de Gasto 2024. Para conocer la metodología de codificación y clasificación, se ponen a disposición de los usuarios los Manuales para la codificación Espacio Temporal, la Clasificación por Actividad Institucional, la Clasificación por Objeto del Gasto y la Clasificación por Funciones de Atención en la siguiente dirección electrónica:"]
[null,"http://sinba.salud.gob.mx/SSASICUENTAS"]
[null,"Este archivo incluye una pestaña por cada catálogo de equivalencias necesario para completar la codificación de la matriz."]
[]
[null,"3. Para llenar las columnas A-E y la columna Q (Codificación Espacio Temporal): Consulte la pestaña \"1.Codificación Espacio Temporal\", la cual contiene los catálogos de entidades federativas, fuentes de financiamiento, grupos de proveedores y establecimientos de salud."]
[]
[null,"4. Para llenar las columnas F-M (Clasificador por Actividad Institucional - CAI): Utilice la información del catálogo que se encuentra en la pestaña \"2.Catálogo CAI\". La estructura funcional de cada proveedor determinará cuáles de estas columnas se deben codificar. Al utilizar el formato correspondiente al grupo de proveedor, los validadores identificarán si las claves se están aplicando correctamente en estas columnas."]
[]
[null,"5. Para llenar las columnas N-P (Clasificador por Objeto del Gasto - COG): Utilice la estructura del catálogo en la pestaña \"3.Catálogo COG\". Codifique las partidas específicas cuando formen parte de un grupo que contenga más de una variable. Si una partida genérica solo tiene una desagregación específica, manténgala a nivel genérico (sin desagregar). Esto significa que en la columna P pueden coexistir claves de 4 y 5 dígitos, según corresponda. El validador considerará las claves correctas solo si también están correctamente codificados el capítulo y el concepto."]
[]
[null,"6. Para llenar las columnas S-V (Clasificador por Funciones de Atención - HC/CFA): La codificación de estas columnas se basa en dos criterios, según el tipo de gasto:"]
[null,null,"\u009f Gasto de Inversión (Capítulos 5000 y 6000): Para su codificación, consulte las equivalencias entre el Clasificador por Objeto del Gasto (COG) y las Funciones de Atención (CFA) que se encuentran en la pestaña \"4.Equivalencias COG=CFA\"."]
[null,null,"\u009f Gasto Corriente (Capitulos 1000-4000): Para su codificación, consulte las equivalencias entre el tipo de unidad y el Clasificador por Actividad Institucional (CAI) que se encuentran en la pestaña \"5.Equivalencias CAI=CFA\"."]
[]
[null,"7. Para llenar la columna W (Monto del Presupuesto Ejercido 2024): Registre en esta columna los montos correspondientes al Presupuesto Ejercido durante el ejercicio fiscal 2024. Los montos deben expresarse en miles de pesos con dos decimales."]
[]
[null,"8. El nombre de la pestaña que contiene la matriz de gasto debe ser modificado según los siguientes criterios:"]
[null,null,"XX.","Número de Cve_Edo_Ins (ver pestaña 1.Catálogo Espacio Temporal)"]
[null,null,"ACRONIMO","Es la clave presupuestal de la Unidad Responsable"]
[null,null,-2024,"No se modifica, indica el año del ejercicio presupuestal que se reporta"]
[null,"Ejemplo: Hospital Regional de Alta especialidad de Oaxaca"]
[null,null,null,"105.UNAM-2024"]
[]
[null,"9. El nombre del archivo debe modificarse según cada institución de la siguiente manera:"]
[null,null,"1.XX. ","Número de Cve_Edo_Ins (ver pestaña 1.Catálogo Espacio Temporal)"]
[null,null,"MATRIZV2","Acrónimo de la Unidad Responsable"]
[null,null,"_IE&D-2025","No se modifica, indica grupo de proveedor y año en que se reporta"]
[null,"Ejemplo: Hospital Regional de Alta especialidad de Oaxaca"]
[null,null,null,"107.UAM_IE&D-2025"]
[]
[]
[null,"Criterios de evaluación"]
[]
[null,"La Norma Oficial Mexicana NOM-035-SSA3-2012, en materia de información en salud, establece la medición de criterios de calidad, los cuales son fundamentales para asegurar la utilidad y confiabilidad de los datos recopilados. Los cuatro criterios que se evalúan en este archivo, y que se enfocan en la calidad de la información plasmada en la matriz de gasto, son los siguientes:"]
[]
[null,null,"\u009f Cobertura Oportuna: Este componente de calidad mide que la totalidad de la información financiera sea entregada a tiempo y completa en la fecha establecida en la solicitud. Se penalizará cada día de retraso y la escasez en la entrega. La calificación de este criterio será completada por la DGIS al registrar la fecha de recepción del archivo."]
[]
[null,null,"Penalización por días de retraso en la calificación de Oportunidad",null,null,null,null,null,"Fuentes de financiamiento solicitadas por grupo de proveedor (IE&D)"]
[null,null,"Días hábiles de retraso","Penalización","Puntaje de oportunidad","Calificación",null,null,"Cve_FF","Descripción"]
[null,null,0,0,1,100,null,null,"A26","Ramo 11, Educación"]
[null,null,1,0.05,0.95,95,null,null,"A27","Ramo 38, Humanidades, Ciencias, Tecnologías e Innovación"]
[null,null,2,0.1,0.9,90]
[null,null,3,0.15,0.85,85]
[null,null,4,0.2,0.8,80]
[null,null,5,0.25,0.75,75]
[null,null,6,0.3,0.7,70]
[null,null,7,0.35,0.65,65]
[null,null,8,0.4,0.6,60]
[null,null,9,0.45,0.55000000000000004,55]
[null,null,10,0.5,0.5,50]
[null,null,11,0.55000000000000004,0.45,45]
[null,null,12,0.6,0.4,40]
[null,null,13,0.65,0.35,35]
[null,null,14,0.7,0.3,30]
[null,null,15,0.75,0.25,25]
[null,null,16,0.8,0.2,20]
[null,null,17,0.85,0.15,15]
[null,null,18,0.9,0.1,10]
[null,null,19,0.95,0.05,5]
[null,null,"20 o más",1,0,0]
[]
[null,null,"\u009f Validez: La Validez mide la proporción de la información fuera de los rangos y valores permitidos. Los rangos considerados como referencia para evaluar la información del Gasto en Salud recibida son los que se encuentran disponibles en la Cuenta de la Hacienda Pública Federal, cuentas públicas estatales o información histórica disponible."]
[]
[null,null,"\u009f Integridad: Mide la completitud en los requerimientos de la información. Se enlistaron una serie de criterios a los que se les asignó una ponderación, los cuales deben verse reflejados en la codificación de la Matriz de Gasto."]
[]
[null,null,"Ponderaciones de integridad para el ejercicio 2024"]
[null,null,null,"Criterio",null,null,"Ponderación"]
[null,null,1,"Codificación en el formato correspondiente",null,null,5]
[null,null,2,"Montos valorados en Miles de pesos",null,null,15]
[null,null,3,"Información Presupuestal",null,null,10]
[null,null,4,"Notas a Fuentes de Financiamiento",null,null,10]
[null,null,5,"Clasificación por Objeto de Gasto",null,null,20]
[null,null,6,"Clasificación por Actividad Institucional ",null,null,20]
[null,null,7,"Clasificación por Funciones de atención",null,null,20]
[]
[null,null,"\u009f Consistencia: La consistencia mide la coherencia interna entre los datos que registra y codifica cada proveedor. Se evaluarán los siguientes criterios:"]
[]
[null,null,null,"Codificación Espacio-Temporal: Las codificaciones del año del ejercicio, fuentes de financiamiento, proveedor y entidad federativa deben estar correctamente asignadas según el catálogo correspondiente (pestaña \"1.Codificación Espacio Temporal\")."]
[null,null,null,"Codificación del clasificador COG: La cuenta de Capital debe coincidir con lo reportado en la cuenta pública y en la entrega de la matriz. Las partidas Genéricas y Específicas deben corresponder al concepto y capitulo según el catálogo. La tendencia histórica debe ser estable."]
[null,null,null,"Codificación del clasificador CAI: Se verifica que la distribución del gasto por subfunción sea coherente con ejercicios anteriores, considerando la tendencia histórica. Cambios significativos deben estar justificados, ya que podrían reflejar errores de codificación o clasificación."]
[null,null,null,"Codificación por Funciones de Atención: Deben estar correctamente asignadas las equivalencias COG=CFA en la cuenta de capital y las equivalencias UM=CAI=CFA en la cuenta corriente. La Cuenta corriente solo deben reportarse capítulos 1000 al 4000 y en la cuenta de capital solo deben reportarse capítulos 5000, 6000 y 9000. El gasto de capacitación e investigación y desarrollo (HKR.4) ahora se clasifica en la función principal de la unidad o del sistema de salud. El gasto administrativo (HC.7.1) solo debe reportarse en unidades administrativas."]
[]
[null,null,"Ponderaciones de Consistencia para el ejercicio 2024"]
[null,null,null,"Criterio",null,null,"Valoración"]
[null,null,1,"Montos valorados en Miles de pesos",null,null,20]
[null,null,2,"Codificación Espacio-Temporal",null,null,20]
[null,null,3,"Codificación del clasificador COG",null,null,20]
[null,null,4,"Codificación del clasificador CAI",null,null,20]
[null,null,5,"Codificación por Funciones de Atención COG=CFA y UM=CAI=CFA",null,null,20]
[]
[null,"Se recomienda consultar el documento \"Metodología para generar el indicador de calidad de la Información del subsistema SICUENTAS\" para conocer la metodología detallada del cálculo de estos componentes de calidad. Adicionalmente, para que la información se reciba y se registre como \"entregada\", la Cobertura Oportuna debe alcanzar una calificación de 50 puntos (la DGIS completará esta calificación añadiendo la fecha de recepción). La Validez y la Integridad deben obtener una calificación de 100 puntos, y la Consistencia se registrará en ceros (la DGIS AÑADIRÁ ESTA EVALUACIÓN al iniciar el proceso de revisión)."]

{"sheet":"Resumen de Calidad","index":2,"n_rows":56,"n_cols":9,"rows_kept":56,"cut":false,"hidden":false,"merged":[[23,3,23,8],[27,3,27,8],[31,3,31,8]]}
[]
[null,null,null,"Subsecretaria de Políticas de Salud y Bienestar Poblacional"]
[null,null,null,"Dirección General de Información en Salud"]
[null,null,null,"Subsistema de Cuentas en Salud a Nivel Federal y Estatal (SICUENTAS)"]
[null,null,null,"Ramo 12 (Salud), Ejercicio 2024"]
[]
[null,null,"Semáforo de Calidad"]
[]
[null,"Cve_Edo_Ins","Unidad responsable","Cobertura Oportuna","Validez","Integridad","Consistencia","Calificación"]
[null,{"$f":"IF(B16=\"\",\"\",B16)","v":""},{"$f":"C16","v":""},{"$f":"IF(IF(ISNUMBER(F16)*ISNUMBER(F21),(F16+F21)/2,IF(ISNUMBER(F16),F16/2,IF(ISNUMBER(F21),F21/2,\"\")))=0,\"\",IF(ISNUMBER(F16)*ISNUMBER(F21),(F16+F21)/2,IF(ISNUMBER(F16),F16/2,IF(ISNUMBER(F21),F21/2,\"\"))))","v":""},{"$f":"IF(I34=0,\"\",I34)","v":""},{"$f":"IF(F46=0,\"\",F46)","v":""},{"$f":"F56","v":""},{"$f":"IFERROR(IF(AVERAGE(D10:G10)=0,\"\",AVERAGE(D10:G10)),\"\")","v":""}]
[]
[null,"1. Cobertura Oportuna "]
[null,"a) Entrega a tiempo"]
[]
[null,"Cve_Edo_Ins","Unidad responsable","Fecha de solicitud","Fecha de entrega","Evaluación"]
[null,{"$f":"IF('XX.ACRONIMO-2024'!D2=\"\",\"\",'XX.ACRONIMO-2024'!D2)","v":""},{"$f":"IFERROR(VLOOKUP($B16,'Base Maestra'!A4:C9,3,FALSE),\"\")","v":""},"2025-08-08",{"$f":"'Notas 2025'!H8","v":"00:00:00"},{"$f":"IF(E16=0,\"Evaluación DGIS\", VLOOKUP(MIN(MAX(0, NETWORKDAYS(D16, E16) - 1), 20),'Base Maestra'!$K$14:$N$35,4, TRUE))","v":"Evaluación DGIS"}]
[]
[null,"b) Entrega Completa"]
[]
[null,"Grupo ","Descripción","Número de Registros","Estatus","Evaluación"]
[null,{"$f":"IFERROR(VLOOKUP(B16,'Base Maestra'!$A$4:$P$8,16,FALSE),\"\")","v":""},{"$f":"IF(B21=\"A26\",\"Ramo 11, Educación\",IF(B21=\"27\",\"Ramo 38, Humanidades, Ciencias, Tecnologías e Innovación\",\"\"))","v":""},{"$f":"IF(B21=\"\",\"\",COUNTIF('XX.ACRONIMO-2024'!E2:E1048576,B21))","v":""},{"$f":"IF((IF(D21=\"\",\"\",IF(D21<=4,\"Falta Reporte\",IF(D21>=5,\"Correcto\"))))=\"Falta Reporte\",\"ý\",IF((IF(D21=\"\",\"\",IF(D21<=4,\"Falta Reporte\",IF(D21>=5,\"Correcto\"))))=\"Correcto\",\"þ\",\"\"))","v":""},{"$f":"IF(E21=\"þ\",100,\"\")","v":""}]
[]
[null,"2. Validez"]
[null,null,null,"Referencia Histórica 2024"]
[null,"CVE_Proveedor ","Unidad responsable",1,2,3,4,6,"Total"]
[null,{"$f":"B10","v":""},{"$f":"C10","v":""},{"$f":"IFERROR(VLOOKUP($B$26,'Base Maestra'!$A$4:$H$9,6,FALSE),0)","v":0},{"$f":"IFERROR(VLOOKUP($B$26,'Base Maestra'!$A$4:$H$9,7,FALSE),0)","v":0},{"$f":"IFERROR(VLOOKUP($B$26,'Base Maestra'!$A$4:$H$9,8,FALSE),0)","v":0},{"$f":"IFERROR(VLOOKUP($B$26,'Base Maestra'!$A$4:$H$9,9,FALSE),0)","v":0},{"$f":"IFERROR(VLOOKUP($B$26,'Base Maestra'!$A$4:$H$9,10,FALSE),0)","v":0},{"$f":"IFERROR(VLOOKUP($B$26,'Base Maestra'!$A$4:$I$9,9,FALSE),0)","v":0}]
[]
[null,null,null,"Matriz de Gasto, Ejercicio 2024"]
[null,"CVE_Proveedor ","Unidad responsable",1,2,3,4,6,"Total"]
[null,{"$f":"B16","v":""},{"$f":"C16","v":""},{"$f":"IFERROR(VLOOKUP($B$30,'Base Maestra'!$A$4:$O$9,10,FALSE),\"\")","v":""},{"$f":"IFERROR(VLOOKUP($B$30,'Base Maestra'!$A$4:$O$9,11,FALSE),\"\")","v":""},{"$f":"IFERROR(VLOOKUP($B$30,'Base Maestra'!$A$4:$O$9,12,FALSE),\"\")","v":""},{"$f":"IFERROR(VLOOKUP($B$30,'Base Maestra'!$A$4:$O$9,13,FALSE),\"\")","v":""},{"$f":"IFERROR(VLOOKUP($B$30,'Base Maestra'!$A$4:$O$9,14,FALSE),\"\")","v":""},{"$f":"SUM(D30:H30)","v":0}]
[]
[null,null,null,"Evaluación"]
[null,"CVE_Proveedor ","Unidad responsable",1,2,3,4,6,"Calificación"]
[null,{"$f":"B16","v":""},{"$f":"C16","v":""},{"$f":"IFERROR(\n   IF(D30=D26, 100,\n      IF(D30<D26,\n         MAX(0, MIN(100, ROUND(-714.29*(1-(D30/D26)) + 100, 0))),\n         0)\n   ),\n\"\")","v":0},0,0,0,0,{"$f":"IF(I26=0,\"\",IFERROR(\nIF(I30=I26,100,\nIF(I30<I26,\nMAX(0,MIN(100,ROUND(-714.29*(1-(I30/I26))+100,0))),\n0)\n),\n\"\"))","v":""}]
[]
[null,"3.Integridad"]
[]
[null,null,"Criterio","Ponderación","Evaluación","Calificación"]
[null,1,"Codificación en el formato correspondiente",5,{"$f":"IF(I30=\"\",\"ý\",IF(I30<>0,\"þ\",\"ý\"))","v":"ý"},{"$f":"IF(E39=\"þ\",D39,0)","v":0}]
[null,2,"Montos valorados en Miles de pesos",15,{"$f":"IFERROR(IF((((I30-I26)/I26)*100)>100,\"ý\",\"þ\"),\"ý\")","v":"ý"},{"$f":"IF(E40=\"þ\",D40,0)","v":0}]
[null,3,"Información Presupuestal",10,{"$f":"IF(ISBLANK(B10), \"ý\", IF(OR(ISBLANK('Notas 2025'!D11), ISBLANK('Notas 2025'!E11), ISBLANK('Notas 2025'!G11)), \"ý\", \"þ\"))","v":"ý"},0]
[null,4,"Notas a Fuentes de Financiamiento",10,{"$f":"IF(ISBLANK(I30), \"ý\", IF(ISBLANK('Notas 2025'!H11), \"ý\", \"þ\"))","v":"ý"},0]
[null,5,"Clasificación por Objeto de Gasto",20,{"$f":"IF(\n   OR(COUNTA('XX.ACRONIMO-2024'!W:W)=0, COUNTA('XX.ACRONIMO-2024'!X:X)=0),\n   \"ý\",\n   IF(\n      COUNTA('XX.ACRONIMO-2024'!W:W) = COUNTA('XX.ACRONIMO-2024'!X:X),\n      IF(COUNTIF('XX.ACRONIMO-2024'!X:X, \"Revisar Catálogo\") >= 1, \"ý\", \"þ\"),\n      \"ý\"\n   )\n)","v":"ý"},0]
[null,6,"Clasificación por Actividad Institucional ",20,{"$f":"IF(\n   OR(COUNTA('XX.ACRONIMO-2024'!W:W)=0, COUNTA('XX.ACRONIMO-2024'!Y:Y)=0),\n   \"ý\",\n   IF(\n      COUNTA('XX.ACRONIMO-2024'!W:W) = COUNTA('XX.ACRONIMO-2024'!Y:Y),\n      IF(COUNTIF('XX.ACRONIMO-2024'!Y:Y, \"Revisar Catálogo\") >= 1, \"ý\", \"þ\"),\n      \"ý\"\n   )\n)","v":"ý"},0]
[null,7,"Clasificación por Funciones de atención",20,{"$f":"IF(\n   OR(COUNTA('XX.ACRONIMO-2024'!W:W)=0, COUNTA('XX.ACRONIMO-2024'!Z:Z)=0),\n   \"ý\",\n   IF(\n      COUNTA('XX.ACRONIMO-2024'!W:W) = COUNTA('XX.ACRONIMO-2024'!Z:Z),\n      IF(COUNTIF('XX.ACRONIMO-2024'!Z:Z, \"Revisar Catálogo\") >= 1, \"ý\", \"þ\"),\n      \"ý\"\n   )\n)","v":"ý"},0]
[null,null,"Calificación",{"$f":"SUM(D39:D45)","v":100},null,{"$f":"IF(SUM(F39:F45)=0,\"\",SUM(F39:F45))","v":""}]
[]
[null,"4. Consistencia"]
[]
[null,null,"Criterio","Valoración","Evaluación","Calificación"]
[null,1,"Montos valorados en Miles de pesos",20,{"$f":"'Notas 2025'!D14","v":"þý"},{"$f":"IF(E51=\"þ\",D51,\"\")","v":""}]
[null,2,"Codificación Espacio-Temporal",20,{"$f":"'Notas 2025'!D15","v":0},{"$f":"IF(E52=\"þ\",D52,\"\")","v":""}]
[null,3,"Codificación del clasificador COG",20,{"$f":"'Notas 2025'!D16","v":0},{"$f":"IF(E53=\"þ\",D53,\"\")","v":""}]
[null,4,"Codificación del clasificador CAI",20,{"$f":"'Notas 2025'!D17","v":0},{"$f":"IF(E54=\"þ\",D54,\"\")","v":""}]
[null,5,"Codificación por Funciones de Atención COG=CFA y UM=CAI=CFA",20,{"$f":"'Notas 2025'!D18","v":0},{"$f":"IF(E55=\"þ\",D55,\"\")","v":""}]
[null,null,"Calificación",{"$f":"SUM(D51:D55)","v":100},null,{"$f":"IF(SUM(F51:F55)=0,\"\",SUM(F51:F55))","v":""}]

{"sheet":"XX.ACRONIMO-2024","index":3,"n_rows":2,"n_cols":26,"rows_kept":2,"cut":false,"hidden":false,"merged":[]}
["Año","Cve_Entidad Federativa","Cve_Proveedor","Cve_Ins","Cve_FF","Cve_Subfunción","Cve_AI","Cve_H","Actividad Institucional","Cve_PP","Programa Presupuestario","Cve_PI","Programa Institucional","Cve_Capítulo ","Cve_Concepto ","Cve_Partida genérica ó partida específica","CLUES/CLAVE","Nombre de unidad","Cve_Función","Cve_Subf","Cve_Actividad","Cve_Subactividad","Importe/Ejercido ","Estructura COG","Estructura CAI","Estructura CFA"]
[null,null,null,null,null,null,null,null,null,null,null,null,null,null,null,null,null,null,null,null,null,null,null,{"$f":"IF(W2<>\"\",(IF(COUNTIFS('Base Maestra'!$A$15:$A$508,N2,'Base Maestra'!$B$15:$B$508,O2,'Base Maestra'!$C$15:$C$508,P2)>0,\"Correcto\",\"Revisar Catálogo\")),\"\")","v":""},{"$f":"IF(D2=103,\n   IF(W2<>\"\", IF(COUNTIFS(\n     'Base Maestra'!$F$59:$F$71,F2,\n     'Base Maestra'!$G$59:$G$71,G2,\n     'Base Maestra'!$I$59:$I$71,I2,\n     'Base Maestra'!$J$59:$J$71,J2,\n     'Base Maestra'!$K$59:$K$71,K2)>0, \"Correcto\", \"Revisar Catálogo\"), \"\"),\nIF(D2=105,\n   IF(W2<>\"\", IF(COUNTIFS(\n     'Base Maestra'!$F$74:$F$88,F2,\n     'Base Maestra'!$G$74:$G$88,G2,\n     'Base Maestra'!$I$74:$I$88,I2,\n     'Base Maestra'!$J$74:$J$88,J2,\n     'Base Maestra'!$K$74:$K$88,K2)>0, \"Correcto\", \"Revisar Catálogo\"), \"\"),\nIF(D2=107,\n   IF(W2<>\"\", IF(COUNTIFS(\n     'Base Maestra'!$F$91:$F$98,F2,\n     'Base Maestra'!$G$91:$G$98,G2,\n     'Base Maestra'!$I$91:$I$98,I2,\n     'Base Maestra'!$J$91:$J$98,J2,\n     'Base Maestra'!$K$91:$K$98,K2)>0, \"Correcto\", \"Revisar Catálogo\"), \"\"),\nIF(D2=106,\n   IF(W2<>\"\", IF(COUNTIFS(\n     'Base Maestra'!$F$101:$F$109,F2,\n     'Base Maestra'!$G$101:$G$109,G2,\n     'Base Maestra'!$I$101:$I$109,I2,\n     'Base Maestra'!$J$101:$J$109,J2,\n     'Base Maestra'!$K$101:$K$109,K2)>0, \"Correcto\", \"Revisar Catálogo\"), \"\"),\n\"\"))) )","v":""},{"$f":"IF(W2<>\"\",(IF(SUMPRODUCT(('Base Maestra'!$E$15:$E$54=S2)*('Base Maestra'!$F$15:$F$54=T2)*('Base Maestra'!$G$15:$G$54=U2)*('Base Maestra'!$H$15:$H$54=V2))>0,\"Correcto\",\"Revisar Catálogo\")),\"\")","v":""}]

{"sheet":"Notas 2025","index":4,"n_rows":20,"n_cols":8,"rows_kept":20,"cut":false,"hidden":false,"merged":[[17,6,17,7],[17,4,17,5],[13,4,13,5],[14,4,14,5],[12,4,12,5],[12,6,12,7],[15,4,15,5],[16,4,16,5],[13,6,13,7],[14,6,14,7],[15,6,15,7],[16,6,16,7]]}
[]
[null,null,null,"Subsecretaria de Políticas de Salud y Bienestar Poblacional"]
[null,null,null,"Dirección General de Información en Salud"]
[null,null,null,"Subsistema de Cuentas en Salud a Nivel Federal y Estatal (SICUENTAS)"]
[null,null,null,"Ramo 12 (Salud), Ejercicio 2024"]
[]
[]
[null,null,{"$f":"'Resumen de Calidad'!C10","v":""},null,null,null,"Fecha de Recepción:"]
[]
[null,"Cve_FF","Descripción","Autorizado","Modificado","Ejercido","Autorizado 2026","Notas"]
[null,{"$f":"'Resumen de Calidad'!B21","v":""},{"$f":"'Resumen de Calidad'!C21","v":""},null,null,{"$f":"SUMIFS('XX.ACRONIMO-2024'!$W:$W,'XX.ACRONIMO-2024'!$E:$E,'Notas 2025'!B11)","v":0}]
[]
[null,null,"Criterio","Evaluación","Observación",null,"Respuesta de la unidad"]
[null,1,"Montos valorados en Miles de pesos","þý"]
[null,2,"Codificación Espacio-Temporal"]
[null,3,"Codificación del clasificador COG"]
[null,4,"Codificación del clasificador CAI"]
[null,5,"Codificación por Funciones de Atención COG=CFA y UM=CAI=CFA"]
[]
[null,"Notas:"]

{"sheet":"1.Codificación Espacio Temporal","index":5,"n_rows":81,"n_cols":10,"rows_kept":81,"cut":false,"hidden":false,"merged":[[36,1,36,9]]}
[]
[null,"1. Catálogo Espacio-Temporal de CONACYT, UNAM, IPN y UAM "]
[]
[null,"Cve_Entidad Federativa","Descripción Entidad Federativa","Cve_Proveedor","Cve_Ins","Descripción Institución","Cve_FF_VM ","Descripción Fuente de Financiamiento","CLUE/CLAVE","Nombre de unidad"]
[null,2,"Baja California","IE&D",103,"Consejo Nacional de Ciencia y Tecnología","A27","Ramo 38","91C","El Colegio de la Frontera Norte, A.C."]
[null,2,"Baja California","IE&D",103,"Consejo Nacional de Ciencia y Tecnología","A27","Ramo 38","9ZW","Centro de Investigación Científica y de Educación Superior de Ensenada, Baja California"]
[null,3,"Baja California Sur","IE&D",103,"Consejo Nacional de Ciencia y Tecnología","A27","Ramo 38","90O","Centro de Investigaciones Biológicas del Noroeste, S.C."]
[null,4,"Capeche","IE&D",103,"Consejo Nacional de Ciencia y Tecnología","A27","Ramo 38","91E","El Colegio de la Frontera Sur"]
[null,5,"Coahuila","IE&D",103,"Consejo Nacional de Ciencia y Tecnología","A27","Ramo 38","90U","Centro de Investigación en Química Aplicada"]
[null,8,"Chihuahua","IE&D",103,"Consejo Nacional de Ciencia y Tecnología","A27","Ramo 38","90E","Centro de Investigación en Materiales Avanzados, S.C."]
[null,9,"Ciudad de México","IE&D",103,"Consejo Nacional de Ciencia y Tecnología","A27","Ramo 38","90A","Centro de Investigación en Ciencias de Información Geoespacial, A.C."]
[null,9,"Ciudad de México","IE&D",103,"Consejo Nacional de Ciencia y Tecnología","A27","Ramo 38","90M","Centro de Investigación y Docencia Económicas, A.C."]
[null,9,"Ciudad de México","IE&D",103,"Consejo Nacional de Ciencia y Tecnología","A27","Ramo 38","90W","Centro de Investigaciones y Estudios Superiores en Antropología Social"]
[null,9,"Ciudad de México","IE&D",103,"Consejo Nacional de Ciencia y Tecnología","A27","Ramo 38","90X","Consejo Nacional de Ciencia y Tecnología"]
[null,9,"Ciudad de México","IE&D",103,"Consejo Nacional de Ciencia y Tecnología","A27","Ramo 38","91O","Fondo para el Desarrollo de Recursos Humanos"]
[null,9,"Ciudad de México","IE&D",103,"Consejo Nacional de Ciencia y Tecnología","A27","Ramo 38","91S","Instituto de Investigaciones \"Dr. José María Luis Mora\""]
[null,11,"Guanajuato","IE&D",103,"Consejo Nacional de Ciencia y Tecnología","A27","Ramo 38","90C","Centro de Investigación en Matemáticas, A.C."]
[null,11,"Guanajuato","IE&D",103,"Consejo Nacional de Ciencia y Tecnología","A27","Ramo 38","90G","CIATEC, A.C. \"Centro de Innovación Aplicada en Tecnologías Competitivas\""]
[null,11,"Guanajuato","IE&D",103,"Consejo Nacional de Ciencia y Tecnología","A27","Ramo 38","90S","Centro de Investigaciones en Óptica, A.C."]
[null,14,"Jalisco","IE&D",103,"Consejo Nacional de Ciencia y Tecnología","A27","Ramo 38","90I","Centro de Investigación y Asistencia en Tecnología y Diseño del Estado de Jalisco, A.C."]
[null,16,"Michoacán","IE&D",103,"Consejo Nacional de Ciencia y Tecnología","A27","Ramo 38","91I","El Colegio de Michoacán, A.C."]
[null,19,"Nuevo León","IE&D",103,"Consejo Nacional de Ciencia y Tecnología","A27","Ramo 38","9ZU","Centro de Ingeniería y Desarrollo Industrial"]
[null,21,"Puebla","IE&D",103,"Consejo Nacional de Ciencia y Tecnología","A27","Ramo 38","91U","Instituto Nacional de Astrofísica, Óptica y Electrónica"]
[null,22,"Querétaro","IE&D",103,"Consejo Nacional de Ciencia y Tecnología","A27","Ramo 38","90K","Centro de Investigación y Desarrollo Tecnológico en Electroquímica, S.C."]
[null,22,"Querétaro","IE&D",103,"Consejo Nacional de Ciencia y Tecnología","A27","Ramo 38","90Y","CIATEQ, A.C. Centro de Tecnología Avanzada"]
[null,24,"San Luis Potosí","IE&D",103,"Consejo Nacional de Ciencia y Tecnología","A27","Ramo 38","91K","El Colegio de San Luis, A.C."]
[null,24,"San Luis Potosí","IE&D",103,"Consejo Nacional de Ciencia y Tecnología","A27","Ramo 38","91W","Instituto Potosino de Investigación Científica y Tecnológica, A.C."]
[null,26,"Sonora","IE&D",103,"Consejo Nacional de Ciencia y Tecnología","A27","Ramo 38","9ZY","Centro de Investigación en Alimentación y Desarrollo, A.C."]
[null,30,"Veracruz","IE&D",103,"Consejo Nacional de Ciencia y Tecnología","A27","Ramo 38","91Q","Instituto de Ecología, A.C."]
[null,31,"Yucatán","IE&D",103,"Consejo Nacional de Ciencia y Tecnología","A27","Ramo 38","90Q","Centro de Investigación Científica de Yucatán, A.C."]
[null,33,"Extranjero","IE&D",103,"Consejo Nacional de Ciencia y Tecnología","A27","Ramo 38","CCT","CONACYT"]
[]
[null,"1-32*",null,"IE&D",105,"Universidad Nacional Autónoma de México","A26","Ramo 11 ","A3Q","Universidad Nacional Autónoma de México"]
[null,"1-32*",null,"IE&D",106,"Instituto Politécnico Nacional","A26","Ramo 11 ","B00","Instituto Politécnico Nacional"]
[null,"1-32*",null,"IE&D",107,"Universidad Autónoma Metropolitana","A26","Ramo 11 ","A2M","Universidad Autónoma Metropolitana"]
[]
[null,"* Estos proveedores realizan el reporte de sus diferentes escuelas, centros de investigación, clínicas universitarias o unidades administrativas, la codificación debe responder a la ubicación geográfica de cada una de estas unidades, si se hacen transferencias de recursos a otras entidades federativas, también debe codificarse el número de entidad receptora del recurso por lo que esta columna debería contener más de una clave de entida, según el siguiente catalogo:"]
[]
[null,"Cve_Entidad Federativa","Descripción"]
[null,1,"Aguascalientes"]
[null,2,"Baja California"]
[null,3,"Baja California Sur"]
[null,4,"Campeche"]
[null,5,"Coahuila"]
[null,6,"Colima"]
[null,7,"Chiapas"]
[null,8,"Chihuahua"]
[null,9,"Distrito Federal"]
[null,10,"Durango"]
[null,11,"Guanajuato"]
[null,12,"Guerrero"]
[null,13,"Hidalgo"]
[null,14,"Jalisco"]
[null,15,"México"]
[null,16,"Michoacán"]
[null,17,"Morelos"]
[null,18,"Nayarit"]
[null,19,"Nuevo León"]
[null,20,"Oaxaca"]
[null,21,"Puebla"]
[null,22,"Querétaro"]
[null,23,"Quintana Roo"]
[null,24,"San Luis Potosí"]
[null,25,"Sinaloa"]
[null,26,"Sonora"]
[null,27,"Tabasco"]
[null,28,"Tamaulipas"]
[null,29,"Tlaxcala"]
[null,30,"Veracruz"]
[null,31,"Yucatán"]
[null,32,"Zacatecas"]
[]
[null,"Diccionario de campos:"]
[]
[null,null,"AÑO","Año del ejercicio fiscal que se reporta"]
[null,null,"Cve_Entidad Federativa","Número de Entidad Federativa donde se ejerció el recurso"]
[null,null,"Cve_Proveedor","Institución que reporta la información de gasto"]
[null,null,"Cve_Ins","Clave de la Institución que reporta la información"]
[null,null,"Cve_FF_VM ","Clave de la Fuente de Financiamiento"]
[null,null,"CLUES/CLAVE","Clave presupuestal de la unidad responsable de la ejecución del recurso"]
[null,null,"Nombre de unidad","Nombre de la unidad responsable de la ejecución del recurso"]

{"sheet":"2.Catálogo CAI IE&D","index":6,"n_rows":132,"n_cols":11,"rows_kept":132,"cut":false,"hidden":false,"merged":[]}
[]
[null,"3. Estructura Programática Funcional del Consejo Nacional de Ciencia y Tecnología (CONACyT), 2024"]
[]
[null,"FI","FN","Cve_Subfunción","Cve_AI","Cve_H","Actividad Institucional","Cve_PP","Programa Presupuestario","Cve_PI","Programa Institucional"]
[null,1,null,null,null,null,null,null,"Gobierno"]
[null,1,3,null,null,null,null,null,"Coordinación de la Política de Gobierno"]
[null,1,3,4,null,null,null,null,"Función Pública"]
[null,1,3,4,1,null,"Función pública y buen gobierno"]
[null,1,3,4,1,null,"Función pública y buen gobierno","O001","Actividades de apoyo a la función pública y buen gobierno"]
[null,3,null,null,null,null,null,null,"Desarrollo Económico"]
[null,3,8,null,null,null,null,null,"Ciencia, Tecnología e Innovación"]
[null,3,8,1,null,null,null,null,"Investigación Científica"]
[null,3,8,1,2,null,"Servicios de apoyo administrativo"]
[null,3,8,1,2,null,"Servicios de apoyo administrativo","M001","Actividades de apoyo administrativo"]
[null,3,8,1,3,null,"Generación de conocimiento científico para el bienestar de la población y difusión de sus resultados"]
[null,3,8,1,3,null,"Generación de conocimiento científico para el bienestar de la población y difusión de sus resultados","E003","Investigación científica, desarrollo e innovación"]
[null,3,8,1,3,null,"Generación de conocimiento científico para el bienestar de la población y difusión de sus resultados","F003","Programas nacionales estratégicos de ciencia, tecnología y vinculación con el sector social, público y privado",0]
[null,3,8,1,3,null,"Generación de conocimiento científico para el bienestar de la población y difusión de sus resultados","P001","Diseño y evaluación de políticas en ciencia, tecnología e innovación"]
[null,3,8,1,6,null,"Apoyo a la formación de capital humano"]
[null,3,8,1,6,null,"Apoyo a la formación de capital humano","S190","Becas de posgrado y apoyos a la calidad"]
[null,3,8,1,7,null,"Apoyo al ingreso y fomento al desarrollo de los investigadores de mérito"]
[null,3,8,1,7,null,"Apoyo al ingreso y fomento al desarrollo de los investigadores de mérito","S191","Sistema Nacional de Investigadores"]
[null,3,8,2,null,null,null,null,"Desarrollo Tecnológico"]
[null,3,8,2,2,null,"Servicios de apoyo administrativo"]
[null,3,8,2,2,null,"Servicios de apoyo administrativo","M001","Actividades de apoyo administrativo"]
[null,3,8,2,4,null,"Generación de desarrollo e innovación tecnológica para elevar la competitividad del país y difusión de sus resultados"]
[null,3,8,2,4,null,"Generación de desarrollo e innovación tecnológica para elevar la competitividad del país y difusión de sus resultados","E003","Investigación científica, desarrollo e innovación"]
[null,3,8,3,null,null,null,null,"Servicios Científicos y Tecnológicos"]
[null,3,8,3,2,null,"Servicios de apoyo administrativo"]
[null,3,8,3,2,null,"Servicios de apoyo administrativo","M001","Actividades de apoyo administrativo"]
[null,3,8,3,5,null,"Formulación, articulación y conducción de la política en ciencia, tecnología e innovación"]
[null,3,8,3,5,null,"Formulación, articulación y conducción de la política en ciencia, tecnología e innovación","P001","Diseño y evaluación de políticas en ciencia, tecnología e innovación"]
[null,3,8,3,6,null,"Apoyo a la formación de capital humano"]
[null,3,8,3,6,null,"Apoyo a la formación de capital humano","E003","Investigación científica, desarrollo e innovación"]
[null,"Nota:"]
[null,"1. En la columna \"Programa Institucional\" favor de capturar la descripción del programa o acción especifica de salud."]
[]
[]
[null,"2. Estructura Programática Funcional de la Universidad Nacional Autónoma de México (UNAM), 2024"]
[]
[null,"FI","FN","Cve_Subfunción","Cve_AI","Cve_H","Actividad Institucional","Cve_PP","Programa Presupuestario","Cve_PI","Programa Institucional"]
[null,2,null,null,null,null,null,null,"Desarrollo Social"]
[null,2,4,null,null,null,null,null,"Recreación, Cultura y Otras Manifestaciones Sociales"]
[null,2,4,2,null,null,null,null,"Cultura"]
[null,2,4,2,8,null,"Fomento y promoción de la cultura"]
[null,2,4,2,8,null,"Fomento y promoción de la cultura","E011","Desarrollo Cultural"]
[null,2,4,2,8,null,"Fomento y promoción de la cultura","K027","Mantenimiento de Infraestructura"]
[null,2,5,null,null,null,null,null,"Educación"]
[null,2,5,2,null,null,null,null,"Educación Media Superior"]
[null,2,5,2,4,null,"Educación media superior de calidad"]
[null,2,5,2,4,null,"Educación media superior de calidad","E007","Servicios de Educación Media Superior"]
[null,2,5,2,4,null,"Educación media superior de calidad","K009","Proyectos de infraestructura social del sector educativo"]
[null,2,5,2,4,null,"Educación media superior de calidad","K027","Mantenimiento de infraestructura"]
[null,2,5,3,null,null,null,null,"Educación Superior"]
[null,2,5,3,5,null,"Educación superior de calidad"]
[null,2,5,3,5,null,"Educación superior de calidad","E010","Servicios de Educación Superior y Posgrado"]
[null,2,5,3,5,null,"Educación superior de calidad","K009","Proyectos de infraestructura social del sector educativo"]
[null,2,5,3,5,null,"Educación superior de calidad","K027","Mantenimiento de infraestructura"]
[null,2,5,3,5,null,"Educación superior de calidad","S243","Programa de Becas Elisa Acuña"]
[null,2,5,4,null,null,null,null,"Posgrado"]
[null,2,5,4,6,null,"Educación de postgrado de calidad"]
[null,2,5,4,6,null,"Educación de postgrado de calidad","E010","Servicios de Educación Superior y Posgrado"]
[null,2,5,4,6,null,"Educación de postgrado de calidad","K027","Mantenimiento de infraestructura"]
[null,3,null,null,null,null,null,null,"Desarrollo Económico"]
[null,3,8,null,null,null,null,null,"Ciencia, Tecnología e Innovación"]
[null,3,8,1,null,null,null,null,"Investigación Científica"]
[null,3,8,1,14,null,"Investigación en diversas instituciones de educación superior"]
[null,3,8,1,14,null,"Investigación en diversas instituciones de educación superior","E021","Investigación Científica y Desarrollo Tecnológico"]
[null,3,8,1,14,null,"Investigación en diversas instituciones de educación superior","K009","Proyectos de infraestructura social del sector educativo"]
[null,3,8,1,14,null,"Investigación en diversas instituciones de educación superior","K027","Mantenimiento de Infraestructura"]
[null,"Nota:"]
[null,"1. En la columna \"Programa Institucional\" favor de capturar la descripción del programa o acción especifica de salud."]
[]
[]
[null,"2. Estructura Programática Funcional de la Universidad Autónoma Metropolitana (UAM) 2024"]
[]
[null,"FI","FN","Cve_Subfunción","Cve_AI","Cve_H","Actividad Institucional","Cve_PP","Programa Presupuestario","Cve_PI","Programa Institucional"]
[null,1,null,null,null,null,null,null,"Gobierno"]
[null,1,3,null,null,null,null,null,"Coordinación de la Política de Gobierno"]
[null,1,3,4,null,null,null,null,"Función Pública"]
[null,1,3,4,1,null,"Función pública y buen gobierno"]
[null,1,3,4,1,null,"Función pública y buen gobierno","O001","Actividades de apoyo a la función pública y buen gobierno"]
[null,2,null,null,null,null,null,null,"Desarrollo Social"]
[null,2,4,null,null,null,null,null,"Recreación, Cultura y Otras Manifestaciones Sociales"]
[null,2,4,2,null,null,null,null,"Cultura"]
[null,2,4,2,8,null,"Fomento y promoción de la cultura"]
[null,2,4,2,8,null,"Fomento y promoción de la cultura","E011","Desarrollo Cultural"]
[null,2,5,null,null,null,null,null,"Educación"]
[null,2,5,3,null,null,null,null,"Educación Superior"]
[null,2,5,3,5,null,"Educación superior de calidad"]
[null,2,5,3,5,null,"Educación superior de calidad","E010","Servicios de Educación Superior y Posgrado"]
[null,2,5,3,5,null,"Educación superior de calidad","K009","Proyectos de infraestructura social del sector educativo"]
[null,2,5,3,5,null,"Educación superior de calidad","S243","Programa de Becas Elisa Acuña"]
[null,2,5,4,null,null,null,null,"Posgrado"]
[null,2,5,4,6,null,"Educación de posgrado de calidad"]
[null,2,5,4,6,null,"Educación de posgrado de calidad","E010","Servicios de Educación Superior y Posgrado"]
[null,3,null,null,null,null,null,null,"Desarrollo Económico"]
[null,3,8,null,null,null,null,null,"Ciencia, Tecnología e Innovación"]
[null,3,8,1,null,null,null,null,"Investigación Científica"]
[null,3,8,1,14,null,"Investigación en diversas instituciones de educación superior"]
[null,3,8,1,14,null,"Investigación en diversas instituciones de educación superior","E021","Investigación Científica y Desarrollo Tecnológico"]
[null,"Nota:"]
[null,"1. En la columna \"Programa Institucional\" favor de capturar la descripción del programa o acción especifica de salud."]
[]
[]
[null,"2. Estructura Programática Funcional del Instituto Politécnico Nacional (IPN), 2024"]
[]
[null,"FI","FN","Cve_Subfunción","Cve_AI","Cve_H","Actividad Institucional","Cve_PP","Programa Presupuestario","Cve_PI","Programa Institucional"]
[null,2,null,null,null,null,null,null,"Desarrollo Social"]
[null,2,5,null,null,null,null,null,"Educación"]
[null,2,5,2,null,null,null,null,"Educación Media Superior"]
[null,2,5,2,4,null,"Educación media superior de calidad"]
[null,2,5,2,4,null,"Educación media superior de calidad","E007","Servicios de Educación Media Superior"]
[null,2,5,2,4,null,"Educación media superior de calidad","S243","Programa de Becas Elisa Acuña"]
[null,2,5,3,null,null,null,null,"Educación Superior"]
[null,2,5,3,5,null,"Educación superior de calidad"]
[null,2,5,3,5,null,"Educación superior de calidad","E010","Servicios de Educación Superior y Posgrado"]
[null,2,5,3,5,null,"Educación superior de calidad","S243","Programa de Becas Elisa Acuña"]
[null,2,5,4,null,null,null,null,"Posgrado"]
[null,2,5,4,6,null,"Educación de postgrado de calidad"]
[null,2,5,4,6,null,"Educación de postgrado de calidad","E010","Servicios de Educación Superior y Posgrado"]
[null,2,5,4,6,null,"Educación de postgrado de calidad","S243","Programa de Becas Elisa Acuña"]
[null,2,5,6,null,null,null,null,"Otros Servicios Educativos y Actividades Inherentes"]
[null,2,5,6,2,null,"Servicios de apoyo administrativo"]
[null,2,5,6,2,null,"Servicios de apoyo administrativo","M001","Actividades de apoyo administrativo"]
[null,3,null,null,null,null,null,null,"Desarrollo Económico"]
[null,3,8,null,null,null,null,null,"Ciencia, Tecnología e Innovación"]
[null,3,8,1,null,null,null,null,"Investigación Científica"]
[null,3,8,1,14,null,"Investigación en diversas instituciones de educación superior"]
[null,3,8,1,14,null,"Investigación en diversas instituciones de educación superior","E021","Investigación Científica y Desarrollo Tecnológico"]
[null,"Nota:"]
[null,"1. En la columna \"Programa Institucional\" favor de capturar la descripción del programa o acción especifica de salud."]

{"sheet":"3.Catálogo COG","index":7,"n_rows":631,"n_cols":6,"rows_kept":631,"cut":false,"hidden":false,"merged":[]}
[]
[null,"3. Catálogo del Clasificador por Objeto de Gasto"]
[]
[null,"Cve_Capítulo ","Cve_Concepto ","Cve_Partida genérica ó partida específica","Descripción","Indicador "]
[null,1,null,null,"Gasto corriente"]
[null,1000,null,null,"Servicios Personales"]
[null,1000,1100,null,"Remuneraciones al personal de carácter permanente"]
[null,1000,1100,1110,"Dietas","VR"]
[null,1000,1100,1120,"Haberes","VR"]
[null,1000,1100,1130,"Sueldos base al personal permanente","VR"]
[null,1000,1100,1140,"Remuneraciones por adscripción laboral en el extranjero","VR"]
[null,1000,1200,null,"Remuneraciones al personal de carácter transitorio"]
[null,1000,1200,1210,"Honorarios asimilables a salarios","VR"]
[null,1000,1200,1220,"Sueldos base al personal eventual"]
[null,1000,1200,12201,"Remuneraciones al personal eventual ","VR"]
[null,1000,1200,12202,"Compensaciones a sustitutos de profesores","VR"]
[null,1000,1200,1230,"Retribuciones por servicios de carácter social"]
[null,1000,1200,12301,"Retribuciones por servicios en período de formación profesional","VR"]
[null,1000,1200,1240,"Retribución a los representantes de los trabajadores y de los patrones en la Junta de Conciliación y Arbitraje","VR"]
[null,1000,1300,null,"Remuneraciones adicionales y especiales"]
[null,1000,1300,1310,"Primas por años de servicios efectivos prestados"]
[null,1000,1300,13101,"Prima quinquenal por años de servicios efectivos prestados","VR"]
[null,1000,1300,13102,"Acreditación por años de servicio en la docencia y al personal administrativo de las instituciones de educación superior","VR"]
[null,1000,1300,13103,"Prima de perseverancia por años de servicio activo en el Ejército, Fuerza Aérea y Armada Mexicanos","VR"]
[null,1000,1300,13104,"Antigüedad","VR"]
[null,1000,1300,1320,"Primas de vacaciones, dominical y gratificación de fin de año"]
[null,1000,1300,13201,"Primas de vacaciones y dominical","VR"]
[null,1000,1300,13202,"Gratificación de fin de año","VR"]
[null,1000,1300,1330,"Horas extraordinarias","VR"]
[null,1000,1300,1340,"Compensaciones"]
[null,1000,1300,13401,"Acreditación por titulación en la docencia","VR"]
[null,1000,1300,13402,"Acreditación al personal docente por años de estudio de licenciatura","VR"]
[null,1000,1300,13403,"Compensaciones por servicios especiales","VR"]
[null,1000,1300,13404,"Compensaciones por servicios eventuales","VR"]
[null,1000,1300,13405,"Compensaciones de retiro","VR"]
[null,1000,1300,13406,"Compensaciones de servicios","VR"]
[null,1000,1300,13407,"Compensaciones adicionales por servicios especiales","VR"]
[null,1000,1300,13408,"Asignaciones docentes, pedagógicas genéricas y específicas","VR"]
[null,1000,1300,13409,"Compensación por adquisición de material didáctico","VR"]
[null,1000,1300,13410,"Compensación por actualización y formación académica","VR"]
[null,1000,1300,13411,"Compensaciones a médicos residentes","VR"]
[null,1000,1300,13412,"Gastos contingentes para el personal radicado en el extranjero","VR"]
[null,1000,1300,13413,"Asignaciones para la conclusión de servicios en la Administración Pública Federal","VR"]
[null,1000,1300,13414,"Asignaciones conforme al régimen laboral","VR"]
[null,1000,1300,1350,"Sobrehaberes","VR"]
[null,1000,1300,1360,"Asignaciones de técnico, de mando, por comisión, de vuelo y de técnico especial"]
[null,1000,1300,13601,"Asignaciones de técnico","VR"]
[null,1000,1300,13602,"Asignaciones de mando","VR"]
[null,1000,1300,13603,"Asignaciones por comisión","VR"]
[null,1000,1300,13604,"Asignaciones de vuelo","VR"]
[null,1000,1300,13605,"Asignaciones de técnico especial","VR"]
[null,1000,1300,1370,"Honorarios especiales","VR"]
[null,1000,1300,1380,"Participaciones por vigilancia en el cumplimiento de las leyes y custodia de valores","VR"]
[null,1000,1400,null,"Seguridad Social"]
[null,1000,1400,1410,"Aportaciones de seguridad social"]
[null,1000,1400,14101,"Aportaciones al ISSSTE","VR"]
[null,1000,1400,14102,"Aportaciones al ISSFAM","VR"]
[null,1000,1400,14103,"Aportaciones al IMSS","VR"]
[null,1000,1400,14104,"Aportaciones de seguridad social contractuales","VR"]
[null,1000,1400,14105,"Aportaciones al seguro de cesantía en edad avanzada y vejez","VR"]
[null,1000,1400,1420,"Aportaciones a fondos de vivienda"]
[null,1000,1400,14201,"Aportaciones al FOVISSSTE","VR"]
[null,1000,1400,14202,"Aportaciones al INFONAVIT","VR"]
[null,1000,1400,1430,"Aportaciones al sistema para el retiro"]
[null,1000,1400,14301,"Aportaciones al sistema de ahorro para el retiro","VR"]
[null,1000,1400,14302,"Depósitos para el ahorro solidario","VR"]
[null,1000,1400,1440,"Aportaciones para seguros"]
[null,1000,1400,14401,"Cuotas para el seguro de vida del personal civil","VR"]
[null,1000,1400,14402,"Cuotas para el seguro de vida del personal militar","VR"]
[null,1000,1400,14403,"Cuotas para el seguro de gastos médicos del personal civil","VR"]
[null,1000,1400,14404,"Cuotas para el seguro de separación individualizado","VR"]
[null,1000,1400,14405,"Cuotas para el seguro colectivo de retiro","VR"]
[null,1000,1400,14406,"Seguro de responsabilidad civil, asistencia legal y otros seguros","VR"]
[null,1000,1500,null,"Otras prestaciones sociales y económicas"]
[null,1000,1500,1510,"Cuotas para el fondo de ahorro y fondo de trabajo"]
[null,1000,1500,15101,"Cuotas para el fondo de ahorro del personal civil","VR"]
[null,1000,1500,15102,"Cuotas para el fondo de ahorro de generales, almirantes, jefes y oficiales","VR"]
[null,1000,1500,15103,"Cuotas para el fondo de trabajo del personal del Ejército, Fuerza Aérea y Armada Mexicanos","VR"]
[null,1000,1500,1520,"Indemnizaciones"]
[null,1000,1500,15201,"Indemnizaciones por accidentes en el trabajo","VR"]
[null,1000,1500,15202," Pago de liquidaciones","VR"]
[null,1000,1500,1530,"Prestaciones y haberes de retiro","VR"]
[null,1000,1500,1540,"Prestaciones contractuales"]
[null,1000,1500,15401,"Prestaciones establecidas por condiciones generales de trabajo o contratos colectivos de trabajo","VR"]
[null,1000,1500,15402,"Compensación garantizada","VR"]
[null,1000,1500,15403,"Asignaciones adicionales al sueldo","VR"]
[null,1000,1500,1550,"Apoyos a la capacitación de los servidores públicos","VR"]
[null,1000,1500,1590,"Otras prestaciones sociales y económicas"]
[null,1000,1500,15901,"Otras prestaciones","VR"]
[null,1000,1500,15902,"Pago extraordinario por riesgo","VR"]
[null,1000,1600,null,"Previsiones"]
[null,1000,1600,1610,"Previsiones de carácter laboral, económica y de seguridad social"]
[null,1000,1600,16101,"Incrementos a las percepciones","VR"]
[null,1000,1600,16102,"Creación de plazas","VR"]
[null,1000,1600,16103,"Otras medidas de carácter laboral y económico","VR"]
[null,1000,1600,16104,"Previsiones para aportaciones al ISSSTE","VR"]
[null,1000,1600,16105,"Previsiones para aportaciones al FOVISSSTE","VR"]
[null,1000,1600,16106,"Previsiones para aportaciones al Sistema de Ahorro para el Retiro","VR"]
[null,1000,1600,16107,"Previsiones para aportaciones al seguro de cesantía en edad avanzada y vejez","VR"]
[null,1000,1600,16108,"Previsiones para los depósitos al ahorro solidario","VR"]
[null,1000,1600,16109,"Previsiones por adecuaciones a las estructuras ocupacionales","VR"]
[null,1000,1700,null,"Pago de estímulos a servidores públicos"]
[null,1000,1700,1710,"Estímulos"]
[null,1000,1700,17101,"Estímulos por productividad y eficiencia","VR"]
[null,1000,1700,17102,"Estímulos al personal operativo","VR"]
[null,1000,1700,1720,"Recompensas","VR"]
[null,2000,null,null,"Materiales y Suministros"]
[null,2000,2100,null,"Materiales de administración, emisión de documentos y articulos oficiales"]
[null,2000,2100,2110,"Materiales, útiles y equipos menores de oficina","VR"]
[null,2000,2100,2120,"Materiales y útiles de impresión y reproducción","VR"]
[null,2000,2100,2130,"Material estadístico y geográfico","VR"]
[null,2000,2100,2140,"Materiales, útiles y equipos menores de tecnologías de la información y comunicaciones","VR"]
[null,2000,2100,2150,"Material impreso e información digital"]
[null,2000,2100,21501,"Material de apoyo informativo","VR"]
[null,2000,2100,21502,"Material para información en actividades de investigación científica y tecnológica","VR"]
[null,2000,2100,2160,"Material de limpieza","VR"]
[null,2000,2100,2170,"Materiales y útiles de enseñanza","VR"]
[null,2000,2100,2180,"Materiales para el registro e identificación de bienes y personas","VR"]
[null,2000,2200,null,"Alimentos y Utensilios"]
[null,2000,2200,2210,"Productos alimenticios para personas"]
[null,2000,2200,22101,"Productos alimenticios para el Ejército, Fuerza Aérea y Armada Mexicanos, y para los efectivos que participen en programas de seguridad pública","VR"]
[null,2000,2200,22102,"Productos alimenticios para personas derivado de la prestación de servicios públicos en unidades de salud, educativas, de readaptación social y otras","VR"]
[null,2000,2200,22103,"Productos alimenticios para el personal que realiza labores en campo o de supervisión","VR"]
[null,2000,2200,22104,"Productos alimenticios para el personal en las instalaciones de las dependencias y entidades","VR"]
[null,2000,2200,22105,"Productos alimenticios para la población en caso de desastres naturales","VR"]
[null,2000,2200,22106,"Productos alimenticios para el personal derivado de actividades extraordinarias","VR"]
[null,2000,2200,2220,"Productos alimenticios para animales","VR"]
[null,2000,2200,2230,"Utensilios para el servicio de alimentación","VR"]
[null,2000,2300,null,"Materias primas y de producción y comercialización"]
[null,2000,2300,2310,"Productos alimenticios, agropecuarios y forestales adquiridos como materia prima","VR"]
[null,2000,2300,2320,"Insumos textiles adquiridos como materia prima","VR"]
[null,2000,2300,2330,"Productos de papel, cartón e impresos adquiridos como materia prima","VR"]
[null,2000,2300,2340,"Combustibles, lubricantes, aditivos, carbón y sus derivados adquiridos como materia prima","VR"]
[null,2000,2300,2350,"Productos químicos, farmacéuticos y de laboratorio adquiridos como materia prima","VR"]
[null,2000,2300,2360,"Productos metálicos y a base de minerales no metálicos adquiridos como materia prima","VR"]
[null,2000,2300,2370,"Productos de cuero, piel, plástico y hule adquiridos como materia prima","VR"]
[null,2000,2300,2380,"Mercancías adquiridas para su comercialización","VR"]
[null,2000,2300,2390,"Otros productos adquiridos como materia prima"]
[null,2000,2300,23901,"Otros productos adquiridos como materia prima","VR"]
[null,2000,2300,23902,"Petróleo, gas y sus derivados adquiridos como materia prima","VR"]
[null,2000,2400,null,"Materiales y artículos de construcción y de reparación"]
[null,2000,2400,2410,"Productos minerales no metálicos","VR"]
[null,2000,2400,2420,"Cemento y productos de concreto","VR"]
[null,2000,2400,2430,"Cal, yeso y productos de yeso","VR"]
[null,2000,2400,2440,"Madera y productos de madera","VR"]
[null,2000,2400,2450,"Vidrio y productos de vidrio","VR"]
[null,2000,2400,2460,"Material eléctrico y electrónico","VR"]
[null,2000,2400,2470,"Artículos metálicos para la construcción","VR"]
[null,2000,2400,2480,"Materiales complementarios","VR"]
[null,2000,2400,2490,"Otros materiales y artículos de construcción y reparación","VR"]
[null,2000,2500,null,"Productos químicos, farmacéuticos y de laboratorio"]
[null,2000,2500,2510,"Productos químicos básicos","VR"]
[null,2000,2500,2520,"Fertilizantes, pesticidas y otros agroquímicos","VR"]
[null,2000,2500,2530,"Medicinas y productos farmacéuticos","VR"]
[null,2000,2500,2540,"Materiales, accesorios y suministros médicos","VR"]
[null,2000,2500,2550,"Materiales, accesorios y suministros de laboratorio","VR"]
[null,2000,2500,2560,"Fibras sintéticas, hules, plásticos y derivados","VR"]
[null,2000,2500,2590,"Otros productos químicos","VR"]
[null,2000,2600,null,"Combustibles, lubricantes y aditivos"]
[null,2000,2600,2610,"Combustibles, lubricantes y aditivos"]
[null,2000,2600,26101,"Combustibles, lubricantes y aditivos para vehículos terrestres, aéreos, marítimos, lacustres y fluviales destinados a la ejecución de programas de seguridad pública y nacional","VR"]
[null,2000,2600,26102,"Combustibles, lubricantes y aditivos para vehículos terrestres, aéreos, marítimos, lacustres y fluviales destinados a servicios públicos y la operación de programas públicos","VR"]
[null,2000,2600,26103,"Combustibles, lubricantes y aditivos para vehículos terrestres, aéreos, marítimos, lacustres y fluviales destinados a servicios administrativos","VR"]
[null,2000,2600,26104,"Combustibles, lubricantes y aditivos para vehículos terrestres, aéreos, marítimos, lacustres y fluviales asignados a servidores públicos","VR"]
[null,2000,2600,26105,"Combustibles, lubricantes y aditivos para maquinaria, equipo de producción y servicios administrativos","VR"]
[null,2000,2600,26106,"PIDIREGAS cargos variables","VR"]
[null,2000,2600,26107,"Combustibles nacionales para plantas productivas","VR"]
[null,2000,2600,26108,"Combustibles de importación para plantas productivas","VR"]
[null,2000,2600,2620,"Carbón y sus derivados","VR"]
[null,2000,2700,null,"Vestuario, blancos, prendas de protección y artículos deportivos"]
[null,2000,2700,2710,"Vestuario y uniformes","VR"]
[null,2000,2700,2720,"Prendas de seguridad y protección personal","VR"]
[null,2000,2700,2730,"Artículos deportivos","VR"]
[null,2000,2700,2740,"Productos textiles","VR"]
[null,2000,2700,2750,"Blancos y otros productos textiles, excepto prendas de vestir","VR"]
[null,2000,2800,null,"Materiales y suministros para seguridad"]
[null,2000,2800,2810,"Sustancias y materiales explosivos","VR"]
[null,2000,2800,2820,"Materiales de seguridad pública","VR"]
[null,2000,2800,2830,"Prendas de protección para seguridad pública y nacional","VR"]
[null,2000,2900,null,"Herramientas, refacciones y accesorios menores"]
[null,2000,2900,2910,"Herramientas menores","VR"]
[null,2000,2900,2920,"Refacciones y accesorios menores de edificios","VR"]
[null,2000,2900,2930,"Refacciones y accesorios menores de mobiliario y equipo de administración, educacional y recreativo","VR"]
[null,2000,2900,2940,"Refacciones y accesorios menores de equipo de cómputo y tecnologías de la información","VR"]
[null,2000,2900,2950,"Refacciones y accesorios menores de equipo e instrumental médico y de laboratorio","VR"]
[null,2000,2900,2960,"Refacciones y accesorios menores de equipo de transporte","VR"]
[null,2000,2900,2970,"Refacciones y accesorios menores de equipo de defensa y seguridad","VR"]
[null,2000,2900,2980,"Refacciones y accesorios menores de maquinaria y otros equipos","VR"]
[null,2000,2900,2990,"Refacciones y accesorios menores otros bienes muebles","VR"]
[null,3000,null,null,"Servicios Generales"]
[null,3000,3100,null,"Servicios básicos"]
[null,3000,3100,3110,"Energía eléctrica","VR"]
[null,3000,3100,3120,"Gas","VR"]
[null,3000,3100,3130,"Agua","VR"]
[null,3000,3100,3140,"Telefonía tradicional","VR"]
[null,3000,3100,3150,"Telefonía celular","VR"]
[null,3000,3100,3160,"Servicios de telecomunicaciones y satélites"]
[null,3000,3100,31601,"Servicio de radiolocalización","VR"]
[null,3000,3100,31602,"Servicios de telecomunicaciones","VR"]
[null,3000,3100,31603,"Servicios de internet","VR"]
[null,3000,3100,3170,"Servicios de acceso de Internet, redes y procesamiento de información","VR"]
[null,3000,3100,3180,"Servicios postales y telegráficos"]
[null,3000,3100,31801,"Servicio postal","VR"]
[null,3000,3100,31802,"Servicio telegráfico","VR"]
[null,3000,3100,3190,"Servicios integrales y otros servicios"]
[null,3000,3100,31901,"Servicios integrales de telecomunicación","VR"]
[null,3000,3100,31902,"Contratación de otros servicios","VR"]
[null,3000,3100,31903,"Servicios generales para planteles educativos","VR"]
[null,3000,3100,31904,"Servicios integrales de infraestructura de cómputo","VR"]
[null,3000,3200,null,"Servicios de arrendamiento"]
[null,3000,3200,3210,"Arrendamiento de terrenos","VR"]
[null,3000,3200,3220,"Arrendamiento de edificios","VR"]
[null,3000,3200,3230,"Arrendamiento de mobiliario y equipo de administración, educacional y recreativo"]
[null,3000,3200,32301,"Arrendamiento de equipo y bienes informáticos","VR"]
[null,3000,3200,32302,"Arrendamiento de mobiliario","VR"]
[null,3000,3200,32303,"Arrendamiento de equipo de telecomunicaciones","VR"]
[null,3000,3200,3240,"Arrendamiento de equipo e instrumental médico y de laboratorio","VR"]
[null,3000,3200,3250,"Arrendamiento de equipo de transporte"]
[null,3000,3200,32501,"Arrendamiento de vehículos terrestres, aéreos, marítimos, lacustres y fluviales para la ejecución de programas de seguridad pública y nacional","VR"]
[null,3000,3200,32502,"Arrendamiento de vehículos terrestres, aéreos, marítimos, lacustres y fluviales para servicios públicos y la operación de programas públicos","VR"]
[null,3000,3200,32503,"Arrendamiento de vehículos terrestres, aéreos, marítimos, lacustres y fluviales para servicios administrativos","VR"]
[null,3000,3200,32504,"Arrendamiento de vehículos terrestres, aéreos, marítimos, lacustres y fluviales para desastres naturales","VR"]
[null,3000,3200,32505,"Arrendamiento de vehículos terrestres, aéreos, marítimos, lacustres y fluviales para servidores públicos","VR"]
[null,3000,3200,3260,"Arrendamiento de maquinaria, otros equipos y herramientas","VR"]
[null,3000,3200,3270,"Arrendamiento de activos intangibles","VR"]
[null,3000,3200,3280,"Arrendamiento financiero","VR"]
[null,3000,3200,3290,"Otros arrendamientos"]
[null,3000,3200,32901,"Arrendamiento de sustancias y productos químicos","VR"]
[null,3000,3200,32902,"PIDIREGAS cargos fijos","VR"]
[null,3000,3200,32903,"Otros Arrendamientos","VR"]
[null,3000,3300,null,"Servicios profesionales, científicos, técnicos y otros servicios"]
[null,3000,3300,3310,"Servicios legales, de contabilidad, auditoría y relacionados"]
[null,3000,3300,33101,"Asesorías asociadas a convenios, tratados o acuerdos","VR"]
[null,3000,3300,33102,"Asesorías por controversias en el marco de los tratados internacionales","VR"]
[null,3000,3300,33103,"Consultorías para programas o proyectos financiados por organismos internacionales","VR"]
[null,3000,3300,33104,"Otras asesorías para la operación de programas","VR"]
[null,3000,3300,33105,"Servicios relacionados con procedimientos jurisdiccionales","VR"]
[null,3000,3300,3320,"Servicios de diseño, arquitectura, ingeniería y actividades relacionadas","VR"]
[null,3000,3300,3330,"Servicios de consultoría administrativa, procesos, técnica y en tecnologías de la información"]
[null,3000,3300,33301,"Servicios de desarrollo de aplicaciones informáticas","VR"]
[null,3000,3300,33302,"Servicios estadísticos y geográficos","VR"]
[null,3000,3300,33303,"Servicios relacionados con certificación de procesos","VR"]
[null,3000,3300,33304,"Servicios de mantenimiento de aplicaciones informáticas","VR"]
[null,3000,3300,3340,"Servicios de capacitación","VR"]
[null,3000,3300,3350,"Servicios de investigación científica y desarrollo","VR"]
[null,3000,3300,3360,"Servicios de apoyo administrativo, traducción, fotocopiado e impresión"]
[null,3000,3300,33601,"Servicios relacionados con traducciones","VR"]
[null,3000,3300,33602,"Otros servicios comerciales","VR"]
[null,3000,3300,33603,"Impresiones de documentos oficiales para la prestación de servicios públicos, identificación, formatos administrativos y fiscales, formas valoradas, certificados y títulos","VR"]
[null,3000,3300,33604,"Impresión y elaboración de material informativo derivado de la operación y administración de las dependencias y entidades","VR"]
[null,3000,3300,33605,"Información en medios masivos derivada de la operación y administración de las dependencias y entidades","VR"]
[null,3000,3300,33606,"Servicios de digitalización","VR"]
[null,3000,3300,3370,"Servicios de protección y seguridad"]
[null,3000,3300,33701,"Gastos de seguridad pública y nacional","VR"]
[null,3000,3300,33702,"Gastos en actividades de seguridad y logística del Estado Mayor Presidencial","VR"]
[null,3000,3300,3380,"Servicios de vigilancia","VR"]
[null,3000,3300,3390,"Servicios profesionales, científicos y técnicos integrales"]
[null,3000,3300,33901,"Subcontratación de servicios con terceros","VR"]
[null,3000,3300,33902,"Proyectos para prestación de servicios","VR"]
[null,3000,3300,33903,"Servicios integrales","VR"]
[null,3000,3300,33904,"Asignaciones derivadas de proyectos de asociación público privada","VR"]
[null,3000,3300,33905,"Servicios integrales en materia de seguridad pública y nacional","VR"]
[null,3000,3300,33906,"Asignaciones para cubrir el pago de obligaciones derivadas de títulos de concesión o de asignación.","VR"]
[null,3000,3400,null,"Servicios financieros, bancarios y comerciales"]
[null,3000,3400,3410,"Servicios financieros y bancarios","VR"]
[null,3000,3400,3420,"Servicios de cobranza, investigación crediticia y similar","VR"]
[null,3000,3400,3430,"Servicios de recaudación, traslado y custodia de valores","VR"]
[null,3000,3400,3440,"Seguros de responsabilidad patrimonial y fianzas","VR"]
[null,3000,3400,3450,"Seguro de bienes patrimoniales","VR"]
[null,3000,3400,3460,"Almacenaje, envase y embalaje","VR"]
[null,3000,3400,3470,"Fletes y maniobras","VR"]
[null,3000,3400,3480,"Comisiones por ventas","VR"]
[null,3000,3400,3490,"Servicios financieros, bancarios y comerciales integrales","VR"]
[null,3000,3500,null,"Servicios de instalación, reparación, mantenimiento y conservación"]
[null,3000,3500,3510,"Conservación y mantenimineto menor de inmuebles"]
[null,3000,3500,35101,"Mantenimiento y conservación de inmuebles para la prestación de servicios administrativos","VR"]
[null,3000,3500,35102,"Mantenimiento y conservación de inmuebles para la prestación de servicios públicos","VR"]
[null,3000,3500,3520,"Instalación, reparación y mantenimiento de mobiliario y equipo de administración, educacional y recreativo","VR"]
[null,3000,3500,3530,"Instalación, reparación y mantenimiento de equipo de cómputo y tecnología de la información","VR"]
[null,3000,3500,3540,"Instalación, reparación y mantenimiento de equipo e instrumental médico y de laboratorio","VR"]
[null,3000,3500,3550,"Reparación y mantenimiento de equipo de transporte","VR"]
[null,3000,3500,3560,"Reparación y mantenimiento de equipo de defensa y seguridad","VR"]
[null,3000,3500,3570,"Instalación, reparación y mantenimiento de maquinaria, otros equipos y herramienta"]
[null,3000,3500,35701,"Mantenimiento y conservación de maquinaria y equipo","VR"]
[null,3000,3500,35702,"Mantenimiento y conservación de plantas e instalaciones productivas","VR"]
[null,3000,3500,3580,"Servicios de limpieza y manejo de desechos","VR"]
[null,3000,3500,3590,"Servicios de jardinería y fumigación","VR"]
[null,3000,3600,null,"Servicios de comunicación social y publicidad"]
[null,3000,3600,3610,"Difusión por radio, televisión y otros medios de mensajes sobre programas y actividades gubernamentales","VR"]
[null,3000,3600,3620,"Difusión por radio, televisión y otros medios de mensajes comerciales para promover la venta de bienes o servicios","VR"]
[null,3000,3600,3630,"Servicios de creatividad, preproducción y producción de publicidad, excepto Internet","VR"]
[null,3000,3600,3640,"Servicios de revelado de fotografías","VR"]
[null,3000,3600,3650,"Servicios de la industria fílmica, del sonido y del video","VR"]
[null,3000,3600,3660,"Servicio de creación y difusión de contenido exclusivamente a través de Internet","VR"]
[null,3000,3600,3690,"Otros servicios de información","VR"]
[null,3000,3700,null,"Servicios de traslado y viáticos"]
[null,3000,3700,3710,"Pasajes aéreos"]
[null,3000,3700,37101,"Pasajes aéreos nacionales para labores en campo y de supervisión","VR"]
[null,3000,3700,37102,"Pasajes aéreos nacionales asociados a los programas de seguridad pública y nacional","VR"]
[null,3000,3700,37103,"Pasajes aéreos nacionales asociados a desastres naturales","VR"]
[null,3000,3700,37104,"Pasajes aéreos nacionales para servidores públicos de mando en el desempeño de comisiones y funciones oficiales","VR"]
[null,3000,3700,37105,"Pasajes aéreos internacionales asociados a los programas de seguridad pública y nacional","VR"]
[null,3000,3700,37106,"Pasajes aéreos internacionales para servidores públicos en el desempeño de comisiones y funciones oficiales","VR"]
[null,3000,3700,3720,"Pasajes terrestres"]
[null,3000,3700,37201,"Pasajes terrestres nacionales para labores en campo y de supervisión","VR"]
[null,3000,3700,37202,"Pasajes terrestres nacionales asociados a los programas de seguridad pública y nacional","VR"]
[null,3000,3700,37203,"Pasajes terrestres nacionales asociados a desastres naturales","VR"]
[null,3000,3700,37204,"Pasajes terrestres nacionales para servidores públicos de mando en el desempeño de comisiones y funciones oficiales","VR"]
[null,3000,3700,37205,"Pasajes terrestres internacionales asociados a los programas de seguridad pública y nacional","VR"]
[null,3000,3700,37206,"Pasajes terrestres internacionales para servidores públicos en el desempeño de comisiones y funciones oficiales","VR"]
[null,3000,3700,37207,"Pasajes terrestres nacionales por medio electrónico","VR"]
[null,3000,3700,3730,"Pasajes marítimos, lacustres y fluviales"]
[null,3000,3700,37301,"Pasajes terrestres nacionales para labores en campo y de supervisión","VR"]
[null,3000,3700,37302,"Pasajes terrestres nacionales asociados a los programas de seguridad pública y nacional","VR"]
[null,3000,3700,37303,"Pasajes terrestres nacionales asociados a desastres naturales","VR"]
[null,3000,3700,37304,"Pasajes terrestres nacionales para servidores públicos de mando en el desempeño de comisiones y funciones oficiales","VR"]
[null,3000,3700,3740,"Autotransporte","VR"]
[null,3000,3700,3750,"Viáticos en el país"]
[null,3000,3700,37501,"Viáticos nacionales para labores en campo y de supervisión","VR"]
[null,3000,3700,37502,"Viáticos nacionales asociados a los programas de seguridad pública y nacional","VR"]
[null,3000,3700,37503,"Viáticos nacionales asociados a desastres naturales","VR"]
[null,3000,3700,37504,"Viáticos nacionales para servidores públicos en el desempeño de funciones oficiales","VR"]
[null,3000,3700,3760,"Viáticos en el extranjero"]
[null,3000,3700,37601,"Viáticos en el extranjero asociados a los programas de seguridad pública y nacional","VR"]
[null,3000,3700,37602,"Viáticos en el extranjero para servidores públicos en el desempeño de comisiones y funciones oficiales","VR"]
[null,3000,3700,3770,"Gastos de instalación y traslado de menaje","VR"]
[null,3000,3700,3780,"Servicios integrales de traslado y viáticos"]
[null,3000,3700,37801,"Servicios integrales nacionales para servidores públicos en el desempeño de comisiones y funciones oficiales","VR"]
[null,3000,3700,37802,"Servicios integrales en el extranjero para servidores públicos en el desempeño de comisiones y funciones oficiales","VR"]
[null,3000,3700,3790,"Otros servicios de traslado y hospedaje","VR"]
[null,3000,3800,null,"Servicios Oficiales"]
[null,3000,3800,3810,"Gastos de ceremonial"]
[null,3000,3800,38101,"Gastos de ceremonial del titular del Ejecutivo Federal","VR"]
[null,3000,3800,38102,"Gastos de ceremonial de los titulares de las dependencias y entidades","VR"]
[null,3000,3800,38103,"Gastos inherentes a la investidura presidencial","VR"]
[null,3000,3800,3820,"Gastos de orden social y cultural","VR"]
[null,3000,3800,3830,"Congresos y convenciones","VR"]
[null,3000,3800,3840,"Exposiciones","VR"]
[null,3000,3800,3850,"Gastos de representación","VR"]
[null,3000,3900,null,"Otros Servicios Generales"]
[null,3000,3900,3910,"Servicios funerarios y de cementerios","VR"]
[null,3000,3900,3920,"Impuestos y derechos"]
[null,3000,3900,39201,"Impuestos y derechos de exportación","VR"]
[null,3000,3900,39202,"Otros impuestos y derechos","VR"]
[null,3000,3900,3930,"Impuestos y derechos de importación","VR"]
[null,3000,3900,3940,"Sentencias y resoluciones por autoridad competente"]
[null,3000,3900,39401,"Erogaciones por resoluciones por autoridad competente","VR"]
[null,3000,3900,39402,"Indemnizaciones por expropiación de predios","VR"]
[null,3000,3900,39403,"Otras asignaciones derivadas de resoluciones de ley","VR"]
[null,3000,3900,3950,"Penas, multas, accesorios y actualizaciones","VR"]
[null,3000,3900,3960,"Otros gastos por responsabilidades"]
[null,3000,3900,39601,"Pérdidas del erario federal","VR"]
[null,3000,3900,39602,"Otros gastos por responsabilidades","VR"]
[null,3000,3900,3970,"Utilidades","VR"]
[null,3000,3900,3980,"Impuesto sobre nóminas y otros que se deriven de una relación laboral","VR"]
[null,3000,3900,3990,"Otros servicios generales"]
[null,3000,3900,39901,"Gastos de las Comisiones Internacionales de Límites y Aguas","VR"]
[null,3000,3900,39902,"Gastos de las oficinas del Servicio Exterior Mexicano","VR"]
[null,3000,3900,39904,"Participaciones en Órganos de Gobierno","VR"]
[null,3000,3900,39905,"Actividades de Coordinación con el Presidente Electo","VR"]
[null,3000,3900,39906,"Servicios Corporativos prestados por las Entidades Paraestatales a sus organismos","VR"]
[null,3000,3900,39907,"Servicios prestados entre Organismos de una Entidad Paraestatal","VR"]
[null,3000,3900,39908,"Erogaciones por cuenta de terceros","VR"]
[null,3000,3900,39909,"Erogaciones recuperables","VR"]
[null,3000,3900,39910,"Apertura de Fondo Rotatorio","VR"]
[null,4000,null,null,"Transferencias, Asignaciones, Subsidios y Otras Ayudas"]
[null,4000,4100,null,"Transferencias internas y asignaciones al sector público"]
[null,4000,4100,4110,"Asignaciones presupuestarias al Poder Ejecutivo","VR"]
[null,4000,4100,4120,"Asignaciones presupuestarias al Poder Legislativo","VR"]
[null,4000,4100,4130,"Asignaciones presupuestarias al Poder Judicial","VR"]
[null,4000,4100,4140,"Asignaciones presupuestarias a Órganos Autónomos","VR"]
[null,4000,4100,4150,"Transferencias internas otorgadas a entidades paraestatales no empresariales y no financieras","VR"]
[null,4000,4100,4160,"Transferencias internas otorgadas a entidades paraestatales empresariales y no financieras","VR"]
[null,4000,4100,4170,"Transferencias internas otorgadas a fideicomisos públicos empresariales y no financieros","VR"]
[null,4000,4100,4180,"Transferencias internas otorgadas a instituciones paraestatales públicas financieras","VR"]
[null,4000,4100,4190,"Transferencias internas otorgadas a fideicomisos públicos financieros","VR"]
[null,4000,4200,null,"Transferencias al resto del sector público"]
[null,4000,4200,4210,"Transferencias otorgadas a entidades paraestatales no empresariales y no financieras","VR"]
[null,4000,4200,4220,"Transferencias otorgadas para entidades paraestatales empresariales y no financieras","VR"]
[null,4000,4200,4230,"Transferencias otorgadas para instituciones paraestatales públicas financieras","VR"]
[null,4000,4200,4240,"Transferencias otorgadas a entidades federativas y municipios","VR"]
[null,4000,4200,4250,"Transferencias a fideicomisos de entidades federativas y municipios","VR"]
[null,4000,4300,null,"Subsidios y Subvenciones"]
[null,4000,4300,4310,"Subsidios a la producción","VR"]
[null,4000,4300,4320,"Subsidios a la distribución","VR"]
[null,4000,4300,4330,"Subsidios a la inversión","VR"]
[null,4000,4300,4340,"Subsidios a la prestación de servicios públicos","VR"]
[null,4000,4300,4350,"Subsidios para cubrir diferenciales de tasas de interés","VR"]
[null,4000,4300,4360,"Subsidios a la vivienda","VR"]
[null,4000,4300,4370,"Subvenciones al consumo","VR"]
[null,4000,4300,4380,"Subsidios a las Entidades Federativas y Municipios","VR"]
[null,4000,4300,4390,"Otros Subsidios"]
[null,4000,4300,43901,"Subsidios para capacitación y becas","VR"]
[null,4000,4300,43902,"Subsidios a fideicomisos privados y estatales","VR"]
[null,4000,4400,null,"Ayudas Sociales"]
[null,4000,4400,4410,"Ayudas sociales a personas"]
[null,4000,4400,44101,"Gastos relacionados con actividades culturales, deportivas y de ayuda extraordinaria","VR"]
[null,4000,4400,44102,"Gastos por servicios de traslado de personas","VR"]
[null,4000,4400,44103,"Premios, recompensas, pensiones de gracia y pensión recreativa estudiantil","VR"]
[null,4000,4400,44104,"Premios, estímulos, recompensas, becas y seguros a deportistas","VR"]
[null,4000,4400,44105,"Apoyo a voluntarios que participan en diversos programas federales","VR"]
[null,4000,4400,44106,"Compensaciones por servicios de carácter social","VR"]
[null,4000,4400,4420,"Becas y otras ayudas para programas de capacitación","VR"]
[null,4000,4400,4430,"Ayudas sociales a instituciones de enseñanza","VR"]
[null,4000,4400,4440,"Ayudas sociales a actividades científicas o académicas"]
[null,4000,4400,44401,"Apoyos a la investigación científica y tecnológica de instituciones académicas y sector público","VR"]
[null,4000,4400,44402,"Apoyos a la investigación científica y tecnológica en instituciones sin fines de lucro","VR"]
[null,4000,4400,4450,"Ayudas sociales a instituciones sin fines de lucro","VR"]
[null,4000,4400,4460,"Ayudas sociales a cooperativas","VR"]
[null,4000,4400,4470,"Ayudas sociales a entidades de interés público","VR"]
[null,4000,4400,4480,"Ayudas por desastres naturales y otros siniestros","VR"]
[null,4000,4500,null,"Pensiones y Jubilaciones"]
[null,4000,4500,4510,"Pensiones","VR"]
[null,4000,4500,4520,"Jubilaciones"]
[null,4000,4500,45201,"Pago de pensiones y jubilaciones","VR"]
[null,4000,4500,45202,"Pago de pensiones y jubilaciones contractuales","VR"]
[null,4000,4500,45203,"Transferencias para el pago de pensiones y jubilaciones","VR"]
[null,4000,4500,4590,"Otras pensiones y jubilaciones"]
[null,4000,4500,45901,"Pago de sumas aseguradas","VR"]
[null,4000,4500,45902,"Prestaciones económicas distintas de pensiones y jubilaciones","VR"]
[null,4000,4600,null,"Transferencias a Fideicomisos, Mandatos y Otros Análogos"]
[null,4000,4600,4610,"Transferencias a fideicomisos del Poder Ejecutivo"]
[null,4000,4600,46101,"Aportaciones a fideicomisos públicos","VR"]
[null,4000,4600,46102,"Aportaciones a mandatos públicos","VR"]
[null,4000,4600,4620,"Transferencias a fideicomisos del Poder Legislativo","VR"]
[null,4000,4600,4630,"Transferencias a fideicomisos del Poder Judicial","VR"]
[null,4000,4600,4640,"Transferencias a fideicomisos públicos de entidades paraestatales no empresariales y no financieras","VR"]
[null,4000,4600,4650,"Transferencias a fideicomisos públicos de entidades paraestatales empresariales y no financieras","VR"]
[null,4000,4600,4660,"Transferencias a fideicomisos de instituciones públicas financieras","VR"]
[null,4000,4600,4690,"Otras transferencias a fideicomisos","VR"]
[null,4000,4700,null,"Transferencias a la Seguridad Social"]
[null,4000,4700,4710,"Transferencias por obligación de ley"]
[null,4000,4700,47101,"Trasferencias para cuotas y aportaciones de seguridad social para el IMSS, ISSSTE e ISSFAM por obligación del Estado","VR"]
[null,4000,4700,47102,"Transferencias para cuotas y aportaciones a los seguros de retiro, cesantía en edad avanzada y vejez","VR"]
[null,4000,4800,null,"Donativos"]
[null,4000,4800,4810,"Donativos a instituciones sin fines de lucro","VR"]
[null,4000,4800,4820,"Donativos a entidades federativas","VR"]
[null,4000,4800,4830,"Donativos a fideicomisos privados","VR"]
[null,4000,4800,4840,"Donativos a fideicomisos estatales","VR"]
[null,4000,4800,4850,"Donativos internacionales","VR"]
[null,4000,4900,null,"Transferencias al Exterior"]
[null,4000,4900,4910,"Transferencias para gobiernos extranjeros","VR"]
[null,4000,4900,4920,"Transferencias para organismos internacionales"]
[null,4000,4900,49201,"Cuotas y aportaciones a organismos internacionales","VR"]
[null,4000,4900,49202,"Otras aportaciones internacionales","VR"]
[null,4000,4900,4930,"Transferencias para el sector privado externo","VR"]
[null,7000,null,null,"Inversiones Financieras y Otras Provisiones"]
[null,7000,7100,null,"Inversiones para el Fomento de Actividades Productivas"]
[null,7000,7100,7110,"Créditos otorgados por entidades federativas y municipios al sector social y privado para el fomento de actividades productivas","VR"]
[null,7000,7100,7120,"Créditos otorgados por las entidades federativas a municipios para el fomento de actividades productivas","VR"]
[null,7000,7200,null,"Acciones y Participaciones de Capital"]
[null,7000,7200,7210,"Acciones y participaciones de capital en entidades paraestatales no empresariales y no financieras con fines de política económica","VR"]
[null,7000,7200,7220,"Acciones y participaciones de capital en entidades paraestatales empresariales y no financieras con fines de política económica","VR"]
[null,7000,7200,7230,"Acciones y participaciones de capital en instituciones paraestatales públicas financieras con fines de política económica","VR"]
[null,7000,7200,7240,"Acciones y participaciones de capital en el sector privado con fines de política económica","VR"]
[null,7000,7200,7250,"Acciones y participaciones de capital en organismos internacionales con fines de política económica","VR"]
[null,7000,7200,7260,"Acciones y participaciones de capital en el sector externo con fines de política económica","VR"]
[null,7000,7200,7270,"Acciones y participaciones de capital en el sector público con fines de gestión de liquidez","VR"]
[null,7000,7200,7280,"Acciones y participaciones de capital en el sector privado con fines de gestión de liquidez","VR"]
[null,7000,7200,7290,"Acciones y participaciones de capital en el sector externo con fines de gestión de liquidez","VR"]
[null,7000,7300,null,"Compra de Títulos y Valores"]
[null,7000,7300,7310,"Bonos","VR"]
[null,7000,7300,7320,"Valores representativos de deuda adquiridos con fines de política económica","VR"]
[null,7000,7300,7330,"Valores representativos de deuda adquiridos con fines de gestión de liquidez","VR"]
[null,7000,7300,7340,"Obligaciones negociables adquiridas con fines de política económica","VR"]
[null,7000,7300,7350,"Obligaciones negociables adquiridas con fines de gestión de liquidez","VR"]
[null,7000,7300,7390,"Otros valores"]
[null,7000,7300,73901,"Fideicomisos para adquisición de títulos de crédito","VR"]
[null,7000,7300,73902,"Adquisición de acciones","VR"]
[null,7000,7300,73903,"Adquisición de otros valores","VR"]
[null,7000,7400,null,"Concesión de Préstamos"]
[null,7000,7400,7410,"Concesión de préstamos a entidades paraestatales no empresariales y no financieras con fines de política económica","VR"]
[null,7000,7400,7420,"Concesión de préstamos a entidades paraestatales empresariales y no financieras con fines de política económica","VR"]
[null,7000,7400,7430,"Concesión de préstamos a instituciones paraestatales públicas financieras con fines de política económica","VR"]
[null,7000,7400,7440,"Concesión de préstamos a entidades federativas y municipios con fines de política económica","VR"]
[null,7000,7400,7450,"Concesión de préstamos al sector privado con fines de política económica"]
[null,7000,7400,74501,"Créditos directos para actividades productivas otorgados al sector privado con fines de política económica","VR"]
[null,7000,7400,74502,"Fideicomisos para financiamiento de obras","VR"]
[null,7000,7400,74503,"Fideicomisos para financiamientos agropecuarios","VR"]
[null,7000,7400,74504,"Fideicomisos para financiamientos industriales","VR"]
[null,7000,7400,74505,"Fideicomisos para financiamientos al comercio y otros servicios","VR"]
[null,7000,7400,74506,"Fideicomisos para financiamientos de vivienda","VR"]
[null,7000,7400,7460,"Concesión de préstamos al sector externo con fines de política económica","VR"]
[null,7000,7400,7470,"Concesión de préstamos al sector público con fines de gestión de liquidez","VR"]
[null,7000,7400,7480,"Concesión de préstamos al sector privado con fines de gestión de liquidez","VR"]
[null,7000,7400,7490,"Concesión de préstamos al sector externo con fines de gestión de liquidez","VR"]
[null,7000,7500,null,"Inversiones en Fideicomisos, Mandatos y Otros Análogos"]
[null,7000,7500,7510,"Inversiones en fideicomisos del Poder Ejecutivo","VR"]
[null,7000,7500,7520,"Inversiones en fideicomisos del Poder Legislativo","VR"]
[null,7000,7500,7530,"Inversiones en fideicomisos del Poder Judicial","VR"]
[null,7000,7500,7540,"Inversiones en fideicomisos públicos no empresariales y no financieros","VR"]
[null,7000,7500,7550,"Inversiones en fideicomisos públicos empresariales y no financieros","VR"]
[null,7000,7500,7560,"Inversiones en fideicomisos públicos financieros"]
[null,7000,7500,75601,"Inversiones en fideicomisos públicos considerados entidades paraestatales","VR"]
[null,7000,7500,75602,"Inversiones en mandatos y otros análogos","VR"]
[null,7000,7500,7570,"Inversiones en fideicomisos de entidades federativas","VR"]
[null,7000,7500,7580,"Inversiones en fideicomisos de municipios","VR"]
[null,7000,7500,7590,"Otras inversiones en fideicomisos","VR"]
[null,7000,7600,null,"Otras Inversiones Financieras"]
[null,7000,7600,7610,"Depósitos a largo plazo en moneda nacional","VR"]
[null,7000,7600,7620,"Depósitos a largo plazo en moneda extranjera","VR"]
[null,7000,7900,null,"Provisiones para Contingencias y Otras Erogaciones Especiales"]
[null,7000,7900,7910,"Contingencias por fenómenos naturales","VR"]
[null,7000,7900,7920,"Contingencias socioeconómicas","VR"]
[null,7000,7900,7990,"Otras erogaciones especiales"]
[null,7000,7900,79901,"Erogaciones contingentes","VR"]
[null,7000,7900,79902,"Provisiones para Erogaciones Especiales","VR"]
[null,2,null,null,"Gasto de inversión"]
[null,5000,null,null,"Bienes Muebles, Inmuebles e Intangibles"]
[null,5000,5100,null,"Mobiliario y Equipo de Administración"]
[null,5000,5100,5110,"Muebles de oficina y estantería","VR"]
[null,5000,5100,5120,"Muebles, excepto de oficina y estantería","VR"]
[null,5000,5100,5130,"Bienes artísticos, culturales y científicos","VR"]
[null,5000,5100,5140,"Objetos de valor","VR"]
[null,5000,5100,5150,"Equipo de cómputo y de tecnologías de la información","VR"]
[null,5000,5100,5190,"Otros mobiliarios y equipos de administración"]
[null,5000,5100,51901,"Equipo de administración","VR"]
[null,5000,5100,51902,"Adjudicaciones, expropiaciones e indemnizaciones de bienes muebles","VR"]
[null,5000,5200,null,"Mobiliario y Equipo Educacional y Recreativo"]
[null,5000,5200,5210,"Equipos y aparatos audiovisuales","VR"]
[null,5000,5200,5220,"Aparatos deportivos","VR"]
[null,5000,5200,5230,"Cámaras fotográficas y de video","VR"]
[null,5000,5200,5290,"Otro mobiliario y equipo educacional y recreativo","VR"]
[null,5000,5300,null,"Equipo e Instrumental Médico y de Laboratorio"]
[null,5000,5300,5310,"Equipo médico y de laboratorio","VR"]
[null,5000,5300,5320,"Instrumental médico y de laboratorio","VR"]
[null,5000,5400,null,"Vehículos y Equipo de Transporte"]
[null,5000,5400,5410,"Vehículos y Equipo Terrestre"]
[null,5000,5400,54101,"Vehículos y equipo terrestres, para la ejecución de programas de seguridad pública y nacional","VR"]
[null,5000,5400,54102,"Vehículos y equipo terrestres, destinados exclusivamente para desastres naturales","VR"]
[null,5000,5400,54103,"Vehículos y equipo terrestres, destinados a servicios públicos y la operación de programas públicos","VR"]
[null,5000,5400,54104,"Vehículos y equipo terrestres, destinados a servicios administrativos","VR"]
[null,5000,5400,54105,"Vehículos y equipo terrestres, destinados a servidores públicos","VR"]
[null,5000,5400,5420,"Carrocerías y remolques","VR"]
[null,5000,5400,5430,"Equipo aeroespacial"]
[null,5000,5400,54301,"Vehículos y equipo aéreo, para la ejecución de programas de seguridad pública y nacional","VR"]
[null,5000,5400,54302,"Vehículos y equipo aéreo, destinados exclusivamente para desastres naturales","VR"]
[null,5000,5400,54303,"Vehículos y equipo aéreo, destinados a servicios públicos y la operación de programas públicos","VR"]
[null,5000,5400,5440,"Equipo ferroviario","VR"]
[null,5000,5400,5450,"Embarcaciones"]
[null,5000,5400,54501,"Vehículos y equipo marítimo, para la ejecución de programas de seguridad pública y nacional","VR"]
[null,5000,5400,54502,"Vehículos y equipo marítimo, destinados a servicios públicos y la operación de programas públicos","VR"]
[null,5000,5400,54503,"Construcción de embarcaciones","VR"]
[null,5000,5400,5490,"Otros equipos de transporte","VR"]
[null,5000,5500,null,"Equipo de Defensa y Seguridad"]
[null,5000,5500,5510,"Equipo de defensa y seguridad"]
[null,5000,5500,55101,"Maquinaria y equipo de defensa y seguridad pública","VR"]
[null,5000,5500,55102,"Equipo de seguridad pública y nacional","VR"]
[null,5000,5600,null,"Maquinaria, Otros Equipos y Herramientas"]
[null,5000,5600,5610,"Maquinaria y equipo agropecuario","VR"]
[null,5000,5600,5620,"Maquinaria y equipo industrial","VR"]
[null,5000,5600,5630,"Maquinaria y equipo de construcción","VR"]
[null,5000,5600,5640,"Sistemas de aire acondicionado, calefacción y de refrigeración industrial y comercial","VR"]
[null,5000,5600,5650,"Equipo de comunicación y telecomunicación","VR"]
[null,5000,5600,5660,"Equipos de generación eléctrica, aparatos y accesorios eléctricos","VR"]
[null,5000,5600,5670,"Herramientas y máquinas-herramienta","VR"]
[null,5000,5600,5690,"Otros equipos"]
[null,5000,5600,56901,"Bienes muebles por arrendamiento financiero","VR"]
[null,5000,5600,56902,"Otros bienes muebles","VR"]
[null,5000,5700,null,"Activos Biológicos"]
[null,5000,5700,5710,"Bovinos","VR"]
[null,5000,5700,5720,"Porcinos","VR"]
[null,5000,5700,5730,"Aves","VR"]
[null,5000,5700,5740,"Ovinos y caprinos","VR"]
[null,5000,5700,5750,"Peces y acuicultura","VR"]
[null,5000,5700,5760,"Equinos","VR"]
[null,5000,5700,5770,"Especies menores y de zoológico","VR"]
[null,5000,5700,5780,"Árboles y plantas","VR"]
[null,5000,5700,5790,"Otros activos biológicos","VR"]
[null,5000,5800,null,"Bienes Inmuebles"]
[null,5000,5800,5810,"Terrenos","VR"]
[null,5000,5800,5820,"Viviendas","VR"]
[null,5000,5800,5830,"Edificios no residenciales","VR"]
[null,5000,5800,5890,"Otros bienes inmuebles"]
[null,5000,5800,58901,"Adjudicaciones, expropiaciones e indemnizaciones de inmuebles","VR"]
[null,5000,5800,58902,"Bienes inmuebles en la modalidad de proyectos de infraestructura productiva de largo plazo","VR"]
[null,5000,5800,58903,"Bienes inmuebles por arrendamiento financiero","VR"]
[null,5000,5800,58904,"Otros bienes inmuebles","VR"]
[null,5000,5900,null,"Activos Intangibles"]
[null,5000,5900,5910,"Software","VR"]
[null,5000,5900,5920,"Patentes","VR"]
[null,5000,5900,5930,"Marcas","VR"]
[null,5000,5900,5940,"Derechos","VR"]
[null,5000,5900,5950,"Concesiones","VR"]
[null,5000,5900,5960,"Franquicias","VR"]
[null,5000,5900,5970,"Licencias informáticas e intelectuales","VR"]
[null,5000,5900,5980,"Licencias industriales, comerciales y otras","VR"]
[null,5000,5900,5990,"Otros activos intangibles","VR"]
[null,6000,null,null,"Inversión Pública"]
[null,6000,6100,null,"Obra Pública en Bienes de Dominio Público"]
[null,6000,6100,6110,"Edificación habitacional","VR"]
[null,6000,6100,6120,"Edificación no habitacional","VR"]
[null,6000,6100,6130,"Construcción de obras para el abastecimiento de agua, petróleo, gas, electricidad y telecomunicaciones","VR"]
[null,6000,6100,6140,"División de terrenos y construcción de obras de urbanización","VR"]
[null,6000,6100,6150,"Construcción de vías de comunicación","VR"]
[null,6000,6100,6160,"Otras construcciones de ingeniería civil u obra pesada","VR"]
[null,6000,6100,6170,"Instalaciones y equipamiento en construcciones","VR"]
[null,6000,6100,6190,"Trabajos de acabados en edificaciones y otros trabajos especializados","VR"]
[null,6000,6200,null,"Obra Pública en Bienes Propios"]
[null,6000,6200,6210,"Edificación habitacional"]
[null,6000,6200,62101,"Obras de construcción para edificios habitacionales","VR"]
[null,6000,6200,62102,"Mantenimiento y rehabilitación de edificaciones habitacionales","VR"]
[null,6000,6200,6220,"Edificación no habitacional"]
[null,6000,6200,62201,"Obras de construcción para edificios no habitacionales","VR"]
[null,6000,6200,62202,"Mantenimiento y rehabilitación de edificaciones no habitacionales","VR"]
[null,6000,6200,6230,"Construcción de obras para el abastecimiento de agua, petróleo, gas, electricidad y telecomunicaciones"]
[null,6000,6200,62301,"Construcción de obras para el abastecimiento de agua, petróleo, gas, electricidad y telecomunicaciones","VR"]
[null,6000,6200,62302,"Mantenimiento y rehabilitación de obras para el abastecimiento de agua, petróleo, gas, electricidad y telecomunicaciones","VR"]
[null,6000,6200,6240,"División de terrenos y construcción de obras de urbanización"]
[null,6000,6200,62401,"Obras de preedificación en terrenos de construcción","VR"]
[null,6000,6200,62402,"Construcción de obras de urbanización","VR"]
[null,6000,6200,62403,"Mantenimiento y rehabilitación de obras de urbanización","VR"]
[null,6000,6200,6250,"Construcción de vías de comunicación"]
[null,6000,6200,62501,"Construcción de vías de comunicación","VR"]
[null,6000,6200,62502,"Mantenimiento y rehabilitación de las vías de comunicación","VR"]
[null,6000,6200,6260,"Otras construcciones de ingeniería civil u obra pesada"]
[null,6000,6200,62601,"Otras construcciones de ingeniería civil u obra pesada","VR"]
[null,6000,6200,62602,"Mantenimiento y rehabilitación de otras obras de ingeniería civil u obras pesadas","VR"]
[null,6000,6200,6270,"Instalaciones y equipamiento en construcciones","VR"]
[null,6000,6200,6290,"Trabajos de acabados en edificaciones y otros trabajos especializados"]
[null,6000,6200,62901,"Ensamble y edificación de construcciones prefabricadas","VR"]
[null,6000,6200,62902,"Obras de terminación y acabado de edificios","VR"]
[null,6000,6200,62903,"Servicios de supervisión de obras","VR"]
[null,6000,6200,62904,"Servicios para la liberación de derechos de vía","VR"]
[null,6000,6200,62905,"Otros servicios relacionados con obras públicas","VR"]
[null,6000,6300,null,"Proyectos Productivos y Acciones de Fomento"]
[null,6000,6300,6310,"Estudios, formulación y evaluación de proyectos productivos no incluidos en conceptos anteriores de este capítulo","VR"]
[null,6000,6300,6320,"Ejecución de proyectos productivos no incluidos en conceptos anteriores de este capítulo","VR"]
[null,9000,null,null,"Deuda pública"]
[null,9000,9900,null,"Adeudos De Ejercicios Fiscales Anteriores (ADEFAS)"]
[null,9000,9900,9910,"ADEFAS","VR"]

{"sheet":"4 Equivalencias COG=CFA","index":8,"n_rows":97,"n_cols":7,"rows_kept":97,"cut":false,"hidden":false,"merged":[]}
[]
[null,"4. Catálogo de equivalencias COG=CFA, primer criterio (Gasto de Capital)"]
[]
[null,"Cve_Partida genérica ó partida específica","Descripción","Cve_Función","Cve_Subf","Cve_Actividad","Cve_Subactividad"]
[null,5110,"Muebles de oficina y estantería","HK.1","HK.1.1","HK.1.1.2","HK.1.1.2.4"]
[null,5120,"Muebles, excepto de oficina y estantería","HK.1","HK.1.1","HK.1.1.2","HK.1.1.2.4"]
[null,5130,"Bienes artísticos, culturales y científicos","HK.1","HK.1.1","HK.1.1.2","HK.1.1.2.4"]
[null,5140,"Objetos de valor","HK.1","HK.1.1","HK.1.1.2","HK.1.1.2.4"]
[null,5150,"Equipo de cómputo y de tecnologías de la información","HK.1","HK.1.1","HK.1.1.3","HK.1.1.3.1"]
[null,51901,"Equipo de administración","HK.1","HK.1.1","HK.1.1.2","HK.1.1.2.4"]
[null,51902,"Adjudicaciones, expropiaciones e indemnizaciones de bienes muebles","HK.1","HK.1.1","HK.1.1.2","HK.1.1.2.4"]
[null,5210,"Equipos y aparatos audiovisuales","HK.1","HK.1.1","HK.1.1.3","HK.1.1.3.1"]
[null,5220,"Aparatos deportivos","HK.1","HK.1.1","HK.1.1.2","HK.1.1.2.4"]
[null,5230,"Cámaras fotográficas y de video","HK.1","HK.1.1","HK.1.1.2","HK.1.1.2.3"]
[null,5290,"Otro mobiliario y equipo educacional y recreativo","HK.1","HK.1.1","HK.1.1.2","HK.1.1.2.4"]
[null,5310,"Equipo médico y de laboratorio","HK.1","HK.1.1","HK.1.1.2","HK.1.1.2.1"]
[null,5320,"Instrumental médico y de laboratorio","HK.1","HK.1.1","HK.1.1.2","HK.1.1.2.1"]
[null,54101,"Vehículos y equipo terrestres, para la ejecución de programas de seguridad pública y nacional","HK.1","HK.1.1","HK.1.1.2","HK.1.1.2.2"]
[null,54102,"Vehículos y equipo terrestres, destinados exclusivamente para desastres naturales","HK.1","HK.1.1","HK.1.1.2","HK.1.1.2.2"]
[null,54103,"Vehículos y equipo terrestres, destinados a servicios públicos y la operación de programas públicos","HK.1","HK.1.1","HK.1.1.2","HK.1.1.2.2"]
[null,54104,"Vehículos y equipo terrestres, destinados a servicios administrativos","HK.1","HK.1.1","HK.1.1.2","HK.1.1.2.2"]
[null,54105,"Vehículos y equipo terrestres, destinados a servidores públicos","HK.1","HK.1.1","HK.1.1.2","HK.1.1.2.2"]
[null,5420,"Carrocerías y remolques","HK.1","HK.1.1","HK.1.1.2","HK.1.1.2.2"]
[null,54301,"Vehículos y equipo aéreo, para la ejecución de programas de seguridad pública y nacional","HK.1","HK.1.1","HK.1.1.2","HK.1.1.2.2"]
[null,54302,"Vehículos y equipo aéreo, destinados exclusivamente para desastres naturales","HK.1","HK.1.1","HK.1.1.2","HK.1.1.2.2"]
[null,54303,"Vehículos y equipo aéreo, destinados a servicios públicos y la operación de programas públicos","HK.1","HK.1.1","HK.1.1.2","HK.1.1.2.2"]
[null,5440,"Equipo ferroviario","HK.1","HK.1.1","HK.1.1.2","HK.1.1.2.2"]
[null,54501,"Vehículos y equipo marítimo, para la ejecución de programas de seguridad pública y nacional","HK.1","HK.1.1","HK.1.1.2","HK.1.1.2.2"]
[null,54502,"Vehículos y equipo marítimo, destinados a servicios públicos y la operación de programas públicos","HK.1","HK.1.1","HK.1.1.2","HK.1.1.2.2"]
[null,54503,"Construcción de embarcaciones","HK.1","HK.1.1","HK.1.1.2","HK.1.1.2.2"]
[null,5490,"Otros equipos de transporte","HK.1","HK.1.1","HK.1.1.2","HK.1.1.2.2"]
[null,55101,"Maquinaria y equipo de defensa y seguridad pública","HK.1","HK.1.1","HK.1.1.2","HK.1.1.2.4"]
[null,55102,"Equipo de seguridad pública y nacional","HK.1","HK.1.1","HK.1.1.2","HK.1.1.2.4"]
[null,5610,"Maquinaria y equipo agropecuario","HK.1","HK.1.1","HK.1.1.2","HK.1.1.2.4"]
[null,5620,"Maquinaria y equipo industrial","HK.1","HK.1.1","HK.1.1.2","HK.1.1.2.4"]
[null,5630,"Maquinaria y equipo de construcción","HK.1","HK.1.1","HK.1.1.2","HK.1.1.2.4"]
[null,5640,"Sistemas de aire acondicionado, calefacción y de refrigeración industrial y comercial","HK.1","HK.1.1","HK.1.1.2","HK.1.1.2.4"]
[null,5650,"Equipo de comunicación y telecomunicación","HK.1","HK.1.1","HK.1.1.2","HK.1.1.2.3"]
[null,5660,"Equipos de generación eléctrica, aparatos y accesorios eléctricos","HK.1","HK.1.1","HK.1.1.2","HK.1.1.2.4"]
[null,5670,"Herramientas y máquinas-herramienta","HK.1","HK.1.1","HK.1.1.2","HK.1.1.2.4"]
[null,56901,"Bienes muebles por arrendamiento financiero","HK.1","HK.1.1","HK.1.1.2","HK.1.1.2.4"]
[null,56902,"Otros bienes muebles","HK.1","HK.1.1","HK.1.1.2","HK.1.1.2.4"]
[null,5710,"Bovinos","HKR.4"]
[null,5720,"Porcinos","HKR.4"]
[null,5730,"Aves","HKR.4"]
[null,5740,"Ovinos y caprinos","HKR.4"]
[null,5750,"Peces y acuicultura","HKR.4"]
[null,5760,"Equinos","HKR.4"]
[null,5770,"Especies menores y de zoológico","HKR.4"]
[null,5780,"Árboles y plantas","HKR.4"]
[null,5790,"Otros activos biológicos","HKR.4"]
[null,5810,"Terrenos","HK.2","HK.2.1","HK.2","HK.2.1"]
[null,5820,"Viviendas","HK.2","HK.2.1","HK.2","HK.2.1"]
[null,5830,"Edificios no residenciales","HK.1","HK.1.1","HK.1.1.1","HK.1.1.1.1"]
[null,58901,"Adjudicaciones, expropiaciones e indemnizaciones de inmuebles","HK.1","HK.1.1","HK.1.1.1","HK.1.1.1.1"]
[null,58902,"Bienes inmuebles en la modalidad de proyectos de infraestructura productiva de largo plazo","HK.1","HK.1.1","HK.1.1.1","HK.1.1.1.1"]
[null,58903,"Bienes inmuebles por arrendamiento financiero","HK.1","HK.1.1","HK.1.1.1","HK.1.1.1.1"]
[null,58904,"Otros bienes inmuebles","HK.1","HK.1.1","HK.1.1.1","HK.1.1.1.1"]
[null,5910,"Software","HK.1","HK.1.1","HK.1.1.3","HK.1.1.3.1"]
[null,5920,"Patentes","HK.1","HK.1.1","HK.1.1.3","HK.1.1.3.2"]
[null,5930,"Marcas","HK.1","HK.1.1","HK.1.1.3","HK.1.1.3.2"]
[null,5940,"Derechos","HK.1","HK.1.1","HK.1.1.3","HK.1.1.3.2"]
[null,5950,"Concesiones","HK.1","HK.1.1","HK.1.1.3","HK.1.1.3.2"]
[null,5960,"Franquicias","HK.1","HK.1.1","HK.1.1.3","HK.1.1.3.2"]
[null,5970,"Licencias informáticas e intelectuales","HK.1","HK.1.1","HK.1.1.3","HK.1.1.3.1"]
[null,5980,"Licencias industriales, comerciales y otras","HK.1","HK.1.1","HK.1.1.3","HK.1.1.3.2"]
[null,5990,"Otros activos intangibles","HK.1","HK.1.1","HK.1.1.3","HK.1.1.3.2"]
[null,6110,"Edificación habitacional","HK.1","HK.1.1","HK.1.1.1","HK.1.1.1.1"]
[null,6120,"Edificación no habitacional","HK.1","HK.1.1","HK.1.1.1","HK.1.1.1.1"]
[null,6130,"Construcción de obras para el abastecimiento de agua, petróleo, gas, electricidad y telecomunicaciones","HK.1","HK.1.1","HK.1.1.1","HK.1.1.1.1"]
[null,6140,"División de terrenos y construcción de obras de urbanización","HK.1","HK.1.1","HK.1.1.1","HK.1.1.1.1"]
[null,6150,"Construcción de vías de comunicación","HK.1","HK.1.1","HK.1.1.1","HK.1.1.1.1"]
[null,6160,"Otras construcciones de ingeniería civil u obra pesada","HK.1","HK.1.1","HK.1.1.1","HK.1.1.1.1"]
[null,6170,"Instalaciones y equipamiento en construcciones","HK.1","HK.1.1","HK.1.1.1","HK.1.1.1.1"]
[null,6190,"Trabajos de acabados en edificaciones y otros trabajos especializados","HK.1","HK.1.1","HK.1.1.1","HK.1.1.1.1"]
[null,62101,"Obras de construcción para edificios habitacionales","HK.1","HK.1.1","HK.1.1.1","HK.1.1.1.1"]
[null,62102,"Mantenimiento y rehabilitación de edificaciones habitacionales","HK.1","HK.1.1","HK.1.1.1","HK.1.1.1.1"]
[null,62201,"Obras de construcción para edificios no habitacionales","HK.1","HK.1.1","HK.1.1.1","HK.1.1.1.1"]
[null,62202,"Mantenimiento y rehabilitación de edificaciones no habitacionales","HK.1","HK.1.1","HK.1.1.1","HK.1.1.1.1"]
[null,62301,"Construcción de obras para el abastecimiento de agua, petróleo, gas, electricidad y telecomunicaciones","HK.1","HK.1.1","HK.1.1.1","HK.1.1.1.1"]
[null,62302,"Mantenimiento y rehabilitación de obras para el abastecimiento de agua, petróleo, gas, electricidad y telecomunicaciones","HK.1","HK.1.1","HK.1.1.1","HK.1.1.1.1"]
[null,62401,"Obras de pre-edificación en terrenos de construcción","HK.1","HK.1.1","HK.1.1.1","HK.1.1.1.1"]
[null,62402,"Construcción de obras de urbanización","HK.1","HK.1.1","HK.1.1.1","HK.1.1.1.1"]
[null,62403,"Mantenimiento y rehabilitación de obras de urbanización","HK.1","HK.1.1","HK.1.1.1","HK.1.1.1.1"]
[null,62501,"Construcción de vías de comunicación","HK.1","HK.1.1","HK.1.1.1","HK.1.1.1.1"]
[null,62502,"Mantenimiento y rehabilitación de las vías de comunicación","HK.1","HK.1.1","HK.1.1.1","HK.1.1.1.1"]
[null,62601,"Otras construcciones de ingeniería civil u obra pesada","HK.1","HK.1.1","HK.1.1.1","HK.1.1.1.1"]
[null,62602,"Mantenimiento y rehabilitación de otras obras de ingeniería civil u obras pesadas","HK.1","HK.1.1","HK.1.1.1","HK.1.1.1.1"]
[null,6270,"Instalaciones y equipamiento en construcciones","HK.1","HK.1.1","HK.1.1.1","HK.1.1.1.1"]
[null,62901,"Ensamble y edificación de construcciones prefabricadas","HK.1","HK.1.1","HK.1.1.1","HK.1.1.1.1"]
[null,62902,"Obras de terminación y acabado de edificios","HK.1","HK.1.1","HK.1.1.1","HK.1.1.1.1"]
[null,62903,"Servicios de supervisión de obras","HK.1","HK.1.1","HK.1.1.1","HK.1.1.1.1"]
[null,62904,"Servicios para la liberación de derechos de vía","HK.1","HK.1.1","HK.1.1.1","HK.1.1.1.1"]
[null,62905,"Otros servicios relacionados con obras públicas","HK.1","HK.1.1","HK.1.1.1","HK.1.1.1.1"]
[null,6310,"Estudios, formulación y evaluación de proyectos productivos no incluidos en conceptos anteriores de este capítulo","HK.1","HK.1.1","HK.1.1.1","HK.1.1.1.1"]
[null,6320,"Ejecución de proyectos productivos no incluidos en conceptos anteriores de este capítulo","HK.1","HK.1.1","HK.1.1.1","HK.1.1.1.1"]
[null,9910,"ADEFAS","HK.2","HK.2.2"]

{"sheet":"5.CAI=CFA IE&D","index":9,"n_rows":49,"n_cols":7,"rows_kept":49,"cut":false,"hidden":false,"merged":[[3,1,3,6]]}
[]
[null,"5 Equivalencias para codificar el Clasificador por Funciones de atención, Segundo Criterio CAI=CFA (Aplicable a IE&D)"]
[]
[null,"Respecto al reporte de información 2024 y los programas relacionados con el cuidado de la salud ejecutados en las instituciones de Educación, Investigación y desarrollo, estas son las funciones aplicables a ellos. Asignar alguna de ellas al reporte de información 2022. En caso de dudas, comunicarse con el personal de DGIS."]
[]
[null,"Cve_Función","Cve_Subf","Cve_Actividad","Cve_Subactividad","Descripción ","Incluye"]
[null,"HC",null,null,null,"Gasto Corriente "]
[null,null,null,null,null,"Cuenta por funciones de atención "]
[null,"HC.1",null,null,null,"Servicios de atención curativa"]
[null,"HC.1","HC.1.1",null,null,"Atención curativa hospitalaria"]
[null,"HC.1","HC.1.1","HC.1.1.1",null,"Atención curativa hospitalaria general","Contacto con los servicios de salud con el objetivo principal de tratar los síntomas de la enfermedad o lesión, para reducir la dolencia. Incluye todos los componentes de la atención curativa o tratamiento de la enfermedad a pacientes internados; tratamiento quirúrgico; procedimientos diagnósticos o terapéuticos, servicios de obstetricia y medicamentos suministrados en unidad hospitalaria general."]
[null,"HC.1","HC.1.1","HC.1.1.2",null,"Atención curativa hospitalaria especializada","Son los servicios de atención curativa con un nivel tecnológico superior, consumen los pacientes internados que tienen necesidades de atención más complejas y menos frecuentes. Los servicios especializados usualmente son desagregaciones de medicina interna, ginecología y obstetricia, cirugía y pediatría, como por ejemplo, neurocirugía (cirugía), alergología (medicina interna), alergología pediátrica (pediatría), medicina reproductiva y genética (ginecología y obstetricia), etc."]
[null,"HC.1","HC.1.3",null,null,"Atención curativa ambulatoria"]
[null,"HC.1","HC.1.3","HC.1.3.1",null,"Servicios médicos y de diagnóstico básicos","Casos más frecuentes y sin complicaciones de todos los campos médicos, como el monitoreo de casos no complicados de enfermedades comunes transmisibles y no transmisibles, así como el seguimiento de enfermedades crónicas, medicamentos suministrados al tratar con un paciente de esta categoria, etc."]
[null,"HC.1","HC.1.3","HC.1.3.2",null,"Atención odontológica ambulatoria","Incluye servicios que se realizan en un entorno ambulatorio, como la extracción de piezas dentales, la colocación de prótesis dentales, implantes y ortodoncia, así como los medicamentos que suministrados en la atención a estos pacientes."]
[null,"HC.1","HC.1.3","HC.1.3.3",null,"Servicios médicos especializados","Son los servicios de atención curativa con un nivel tecnológico superior a pacientes ambulatorios"]
[null,"HC.6",null,null,null,"Servicios de atención preventiva"]
[null,"HC.6","HC.6.1",null,null,"Información, educación y programas de prevención","\u0084 Información, educación y comunicación que combina estrategias, modelos y métodos para que las personas asuman un papel activo en proteger, sostener y mantener su propia salud. Incluyen procesos de aprendizaje que capacitan a las personas a tomar decisiones, modificar conductas y cambiar las condiciones sociales."]
[null,"HC.6","HC.6.2",null,null,"Programas de vacunación","\u0084  Programas que se llevan a cabo para prevenir el desarrollo de una enfermedad, antes o después de la exposición"]
[null,"HC.6","HC.6.3",null,null,"Programas de detección temprana de enfermedades","\u0084Esta categoría comprende la detección de una enfermedad en sus primeras fases de desarrollo antes de que aparezcan los síntomas, en grupos de riesgo, durante una campaña o programa planificado se bordan enfermedades específicas (por ejemplo SIDA, Cáncer, malaria, covid... etc)"]
[null,"HC.6","HC.6.4",null,null,"Programas de monitoreo de las condiciones de salud","\u0084 Esta categoría comprende acciones para monitorear de manera activa las condiciones de salud, sin centrarse en enfermedades específicas. Pueden estar dirigidas a estados específicos, como embarazos, grupos específicos de edad como los niños o grupos de personas mayores, o campos específicos de la salud, como los chequeos de salud general y odontológica."]
[null,"HC.6","HC.6.5",null,null,"Vigilancia epidemiológica y de riesgos, y programas de control de enfermedades","\u0084  Acciones de carácter técnico para gestionar el conocimiento y los recursos a efectos preventivos y de control. Incluye la evaluación adecuada de los programas para identificar las mejoras operativas."]
[null,"HC.6","HC.6.6",null,null,"Programas de respuesta a emergencias y desastres","\u0084 Incluye la preparación de una respuesta adecuada de ayuda humanitaria en caso de emergencia, por un suceso de origen natural o provocado por los seres humanos. El objetivo es proteger la salud y reducir la mortalidad y morbilidad mediante programas de formación de epidemiología de campo y entrenamiento para cumplir determinadas normas técnicas, por ejemplo, la adquisición o preparación de recursos durante un período breve de tiempo, la preparación para cambiar la operación y referencia de pacientes, etc."]
[null,"HC.7",null,null,null,"Gobierno, sistema de salud  y administración del financiamiento"]
[null,"HC.7","HC.7.1",null,null,"Gobierno y administración del sistema de salud","\u0084  Se refiere al servicio público de la Administración. Incluye la planificación, la formulación política y la información especializada de todo el sistema de salud."]
[null,"HC.7","HC.7.2",null,null,"Administración del financiamiento de la sanidad","\u0084  Comprende la gestión de la recaudación de fondos y la administración, monitoreo y evaluación de dichos recursos."]
[null,"HK",null,null,null,"Gasto de inversión"]
[null,null,null,null,null,"Cuenta de capital"]
[null,"HK.1",null,null,null,"Formación bruta de capital"]
[null,"HK.1","HK.1.1",null,null,"Formación bruta de capital fijo"]
[null,"HK.1","HK.1.1","HK.1.1.1",null,"Infraestructura"]
[null,"HK.1","HK.1.1","HK.1.1.1","HK.1.1.1.1","Construcciones residenciales y no residenciales"]
[null,"HK.1","HK.1.1","HK.1.1.1","HK.1.1.1.2","Otras estructuras"]
[null,"HK.1","HK.1.1","HK.1.1.2",null,"Maquinaria y equipo"]
[null,"HK.1","HK.1.1","HK.1.1.2","HK.1.1.2.1","Equipo medico"]
[null,"HK.1","HK.1.1","HK.1.1.2","HK.1.1.2.2","Equipo de transportación"]
[null,"HK.1","HK.1.1","HK.1.1.2","HK.1.1.2.3","Tecnologías de la información y la comunicación"]
[null,"HK.1","HK.1.1","HK.1.1.2","HK.1.1.2.4","Otro tipo de equipo"]
[null,"HK.1","HK.1.1","HK.1.1.3",null,"Productos con propiedad intelectual"]
[null,"HK.1","HK.1.1","HK.1.1.3","HK.1.1.3.1","Software y bases de datos"]
[null,"HK.1","HK.1.1","HK.1.1.3","HK.1.1.3.2","Otros productos con propiedad intelectual"]
[null,"HK.1","HK.1.2",null,null,"Cambio en inventarios"]
[null,"HK.1","HK.1.3",null,null,"Adquisiciones menos cesiones de objetos valiosos"]
[null,"HK.2",null,null,null,"Activos no producidos ni financieros"]
[null,"HK.2","HK.2.1",null,null,"Tierra"]
[null,"HK.2","HK.2.2",null,null,"Otros activos no producidos ni financieros"]
[null,"HKR",null,null,null,"Funciones relacionadas con la cuenta de capital"]
[null,"HKR.4",null,null,null,"Investigación y desarrollo en salud","\u0084 Comprende el trabajo creativo realizado de forma sistemática para aumentar los conocimientos incluido el conocimiento del ser humano, cultura y sociedad y el uso de dichos conocimientos para desarrollar nuevas aplicaciones.\nLas actividades de Investigación y Desarrollo  en servicios de salud deben excluir toda la educación y formación del personal de salud en universidades e instituciones especiales de enseñanza superior y de posgrado. Sin embargo, la investigación de los estudiantes de posgrado que realicen en las universidades y en los hospitales universitarios en las ciencias médicas se debe contabilizar, cuando sea posible, como parte de la IYD"]
[null,"HKR.5",null,null,null,"Educación y capacitación del personal en salud","\u0084 Gasto en educación y formación del personal de la salud. Comprende la provisión privada y pública de educación y formación al personal de la salud, incluida la administración, inspección y apoyo de instituciones que proporcionan la educación y formación de dicho personal"]